Workbook

Sheet Fibo Iter Offset Manual
A1: N | B1: F_N | C1: Formula | E1: N | F1: F_N | H1: N | I1: F_N | K1: N | L1: F_N
A2: =_xlfn.SEQUENCE(11,,0) -> 0 | B2: =A2 -> 0 | C2: =_xlfn.FORMULATEXT(B2) -> =A2 | E2: =_xlfn.SEQUENCE(11,,0) -> 0 | F2: =IF(E2 < 2, E2, OFFSET(F2, -1, 0) + OFFSET(F2, -2, 0)) -> 0 | H2: =_xlfn.SEQUENCE(11,,0) -> 0 | I2: =IF(OFFSET(INDIRECT(ADDRESS(ROW(), COLUMN())), 0, -1) < 2, OFFSET(INDIRECT(ADDRESS(ROW(), COLUMN())), 0, -1), OFFSET(INDIRECT(ADDRESS(ROW(), COLUMN())), -1, 0) + OFFSET(INDIRECT(ADDRESS(ROW(), COLUMN())), -2, 0)) -> 0 | K2: =_xlfn.SEQUENCE(11,,0) -> 0 | L2: =_xlfn.LET(_xlpm.x, INDIRECT(ADDRESS(ROW(), COLUMN())), IF(OFFSET(_xlpm.x, 0, -1) < 2, OFFSET(_xlpm.x, 0, -1), OFFSET(_xlpm.x, -1, 0) + OFFSET(_xlpm.x, -2, 0))) -> 0
A3: 1 | B3: =A3 -> 1 | C3: =A3 | E3: 1 | F3: 1 | H3: 1 | I3: =IF(OFFSET(INDIRECT(ADDRESS(ROW(), COLUMN())), 0, -1) < 2, OFFSET(INDIRECT(ADDRESS(ROW(), COLUMN())), 0, -1), OFFSET(INDIRECT(ADDRESS(ROW(), COLUMN())), -1, 0) + OFFSET(INDIRECT(ADDRESS(ROW(), COLUMN())), -2, 0)) -> 1 | K3: 1 | L3: =_xlfn.LET(_xlpm.x, INDIRECT(ADDRESS(ROW(), COLUMN())), IF(OFFSET(_xlpm.x, 0, -1) < 2, OFFSET(_xlpm.x, 0, -1), OFFSET(_xlpm.x, -1, 0) + OFFSET(_xlpm.x, -2, 0))) -> 1
A4: 2 | B4: =B2 + B3 -> 1 | C4: =B2 + B3 | E4: 2 | F4: 1 | H4: 2 | I4: =IF(OFFSET(INDIRECT(ADDRESS(ROW(), COLUMN())), 0, -1) < 2, OFFSET(INDIRECT(ADDRESS(ROW(), COLUMN())), 0, -1), OFFSET(INDIRECT(ADDRESS(ROW(), COLUMN())), -1, 0) + OFFSET(INDIRECT(ADDRESS(ROW(), COLUMN())), -2, 0)) -> 1 | K4: 2 | L4: =_xlfn.LET(_xlpm.x, INDIRECT(ADDRESS(ROW(), COLUMN())), IF(OFFSET(_xlpm.x, 0, -1) < 2, OFFSET(_xlpm.x, 0, -1), OFFSET(_xlpm.x, -1, 0) + OFFSET(_xlpm.x, -2, 0))) -> 1
A5: 3 | B5: 2 | C5: =B3 + B4 | E5: 3 | F5: 2 | H5: 3 | I5: =IF(OFFSET(INDIRECT(ADDRESS(ROW(), COLUMN())), 0, -1) < 2, OFFSET(INDIRECT(ADDRESS(ROW(), COLUMN())), 0, -1), OFFSET(INDIRECT(ADDRESS(ROW(), COLUMN())), -1, 0) + OFFSET(INDIRECT(ADDRESS(ROW(), COLUMN())), -2, 0)) -> 2 | K5: 3 | L5: =_xlfn.LET(_xlpm.x, INDIRECT(ADDRESS(ROW(), COLUMN())), IF(OFFSET(_xlpm.x, 0, -1) < 2, OFFSET(_xlpm.x, 0, -1), OFFSET(_xlpm.x, -1, 0) + OFFSET(_xlpm.x, -2, 0))) -> 2
A6: 4 | B6: 3 | C6: =B4 + B5 | E6: 4 | F6: 3 | H6: 4 | I6: =IF(OFFSET(INDIRECT(ADDRESS(ROW(), COLUMN())), 0, -1) < 2, OFFSET(INDIRECT(ADDRESS(ROW(), COLUMN())), 0, -1), OFFSET(INDIRECT(ADDRESS(ROW(), COLUMN())), -1, 0) + OFFSET(INDIRECT(ADDRESS(ROW(), COLUMN())), -2, 0)) -> 3 | K6: 4 | L6: =_xlfn.LET(_xlpm.x, INDIRECT(ADDRESS(ROW(), COLUMN())), IF(OFFSET(_xlpm.x, 0, -1) < 2, OFFSET(_xlpm.x, 0, -1), OFFSET(_xlpm.x, -1, 0) + OFFSET(_xlpm.x, -2, 0))) -> 3
A7: 5 | B7: 5 | C7: =B5 + B6 | E7: 5 | F7: 5 | H7: 5 | I7: =IF(OFFSET(INDIRECT(ADDRESS(ROW(), COLUMN())), 0, -1) < 2, OFFSET(INDIRECT(ADDRESS(ROW(), COLUMN())), 0, -1), OFFSET(INDIRECT(ADDRESS(ROW(), COLUMN())), -1, 0) + OFFSET(INDIRECT(ADDRESS(ROW(), COLUMN())), -2, 0)) -> 5 | K7: 5 | L7: =_xlfn.LET(_xlpm.x, INDIRECT(ADDRESS(ROW(), COLUMN())), IF(OFFSET(_xlpm.x, 0, -1) < 2, OFFSET(_xlpm.x, 0, -1), OFFSET(_xlpm.x, -1, 0) + OFFSET(_xlpm.x, -2, 0))) -> 5
A8: 6 | B8: 8 | C8: =B6 + B7 | E8: 6 | F8: 8 | H8: 6 | I8: =IF(OFFSET(INDIRECT(ADDRESS(ROW(), COLUMN())), 0, -1) < 2, OFFSET(INDIRECT(ADDRESS(ROW(), COLUMN())), 0, -1), OFFSET(INDIRECT(ADDRESS(ROW(), COLUMN())), -1, 0) + OFFSET(INDIRECT(ADDRESS(ROW(), COLUMN())), -2, 0)) -> 8 | K8: 6 | L8: =_xlfn.LET(_xlpm.x, INDIRECT(ADDRESS(ROW(), COLUMN())), IF(OFFSET(_xlpm.x, 0, -1) < 2, OFFSET(_xlpm.x, 0, -1), OFFSET(_xlpm.x, -1, 0) + OFFSET(_xlpm.x, -2, 0))) -> 8
A9: 7 | B9: 13 | C9: =B7 + B8 | E9: 7 | F9: 13 | H9: 7 | I9: =IF(OFFSET(INDIRECT(ADDRESS(ROW(), COLUMN())), 0, -1) < 2, OFFSET(INDIRECT(ADDRESS(ROW(), COLUMN())), 0, -1), OFFSET(INDIRECT(ADDRESS(ROW(), COLUMN())), -1, 0) + OFFSET(INDIRECT(ADDRESS(ROW(), COLUMN())), -2, 0)) -> 13 | K9: 7 | L9: =_xlfn.LET(_xlpm.x, INDIRECT(ADDRESS(ROW(), COLUMN())), IF(OFFSET(_xlpm.x, 0, -1) < 2, OFFSET(_xlpm.x, 0, -1), OFFSET(_xlpm.x, -1, 0) + OFFSET(_xlpm.x, -2, 0))) -> 13
A10: 8 | B10: 21 | C10: =B8 + B9 | E10: 8 | F10: 21 | H10: 8 | I10: =IF(OFFSET(INDIRECT(ADDRESS(ROW(), COLUMN())), 0, -1) < 2, OFFSET(INDIRECT(ADDRESS(ROW(), COLUMN())), 0, -1), OFFSET(INDIRECT(ADDRESS(ROW(), COLUMN())), -1, 0) + OFFSET(INDIRECT(ADDRESS(ROW(), COLUMN())), -2, 0)) -> 21 | K10: 8 | L10: =_xlfn.LET(_xlpm.x, INDIRECT(ADDRESS(ROW(), COLUMN())), IF(OFFSET(_xlpm.x, 0, -1) < 2, OFFSET(_xlpm.x, 0, -1), OFFSET(_xlpm.x, -1, 0) + OFFSET(_xlpm.x, -2, 0))) -> 21
A11: 9 | B11: 34 | C11: =B9 + B10 | E11: 9 | F11: 34 | H11: 9 | I11: =IF(OFFSET(INDIRECT(ADDRESS(ROW(), COLUMN())), 0, -1) < 2, OFFSET(INDIRECT(ADDRESS(ROW(), COLUMN())), 0, -1), OFFSET(INDIRECT(ADDRESS(ROW(), COLUMN())), -1, 0) + OFFSET(INDIRECT(ADDRESS(ROW(), COLUMN())), -2, 0)) -> 34 | K11: 9 | L11: =_xlfn.LET(_xlpm.x, INDIRECT(ADDRESS(ROW(), COLUMN())), IF(OFFSET(_xlpm.x, 0, -1) < 2, OFFSET(_xlpm.x, 0, -1), OFFSET(_xlpm.x, -1, 0) + OFFSET(_xlpm.x, -2, 0))) -> 34
A12: 10 | B12: 55 | C12: =B10 + B11 | E12: 10 | F12: 55 | H12: 10 | I12: =IF(OFFSET(INDIRECT(ADDRESS(ROW(), COLUMN())), 0, -1) < 2, OFFSET(INDIRECT(ADDRESS(ROW(), COLUMN())), 0, -1), OFFSET(INDIRECT(ADDRESS(ROW(), COLUMN())), -1, 0) + OFFSET(INDIRECT(ADDRESS(ROW(), COLUMN())), -2, 0)) -> 55 | K12: 10 | L12: =_xlfn.LET(_xlpm.x, INDIRECT(ADDRESS(ROW(), COLUMN())), IF(OFFSET(_xlpm.x, 0, -1) < 2, OFFSET(_xlpm.x, 0, -1), OFFSET(_xlpm.x, -1, 0) + OFFSET(_xlpm.x, -2, 0))) -> 55

Sheet Fibo Iter Offset CSE
A1: F_N | C1: F_N | E1: F_N | G1: F_N | I1: F_N | K1: CSE | M1: VBA | O1: Run macro "RepeatFunctionDown"
A2: 0 | C2: 0 | E2: =_xlfn.LAMBDA(_xlpm.x, IF( OR( ISERROR(OFFSET(_xlpm.x, -1, 0)), ISBLANK(OFFSET(_xlpm.x, -1, 0)), NOT(ISNUMBER(OFFSET(_xlpm.x, -1, 0))) ), 0, IF(AND( IFERROR(OFFSET(_xlpm.x, -1, 0) <> 0, FALSE), OR( ISERROR(OFFSET(_xlpm.x, -2, 0)), ISBLANK(OFFSET(_xlpm.x, -2, 0)), NOT(ISNUMBER(OFFSET(_xlpm.x, -2, 0))) ) ), 0, IF(AND( IFERROR(OFFSET(_xlpm.x, -1, 0) = 0, FALSE), OR( ISERROR(OFFSET(_xlpm.x, -2, 0)), ISBLANK(OFFSET(_xlpm.x, -2, 0)), NOT(ISNUMBER(OFFSET(_xlpm.x, -2, 0))), IFERROR(OFFSET(_xlpm.x, -2, 0) <> 0, FALSE) ) ), 1, OFFSET(_xlpm.x, -1, 0) + OFFSET(_xlpm.x, -2, 0) ))))(INDIRECT(ADDRESS(ROW(), COLUMN()))) -> 0 | G2: =_xlfn.LAMBDA(_xlpm.x, _xlfn.LET( _xlpm.a, OFFSET(_xlpm.x, -2, 0), _xlpm.b, OFFSET(_xlpm.x, -1, 0), IF(OR(ISERROR(_xlpm.b), ISBLANK(_xlpm.b), NOT(ISNUMBER(_xlpm.b))), 0, IF(AND(IFERROR(_xlpm.b <> 0, FALSE), OR( ISERROR(_xlpm.a), ISBLANK(_xlpm.a), NOT(ISNUMBER(_xlpm.a)))), 0, IF(AND( IFERROR(_xlpm.b = 0, FALSE), OR( ISERROR(_xlpm.a), ISBLANK(_xlpm.a), NOT(ISNUMBER(_xlpm.a)), IFERROR(_xlpm.a <> 0, FALSE))), 1, _xlpm.a + _xlpm.b )))))(INDIRECT(ADDRESS(ROW(), COLUMN()))) -> 0 | I2: =IterFiboOffset(INDIRECT(ADDRESS(ROW(), COLUMN()))) -> 0 | K2: =IterFiboOffset(INDIRECT(ADDRESS(ROW(), COLUMN()))) -> 0 | M2: =UDF_FiboSequenceIterativeInt(11) -> 1 | O2: =IterFiboOffset(INDIRECT(ADDRESS(ROW(), COLUMN()))) -> 0
A3: 1 | C3: 1 | E3: =_xlfn.LAMBDA(_xlpm.x, IF( OR( ISERROR(OFFSET(_xlpm.x, -1, 0)), ISBLANK(OFFSET(_xlpm.x, -1, 0)), NOT(ISNUMBER(OFFSET(_xlpm.x, -1, 0))) ), 0, IF(AND( IFERROR(OFFSET(_xlpm.x, -1, 0) <> 0, FALSE), OR( ISERROR(OFFSET(_xlpm.x, -2, 0)), ISBLANK(OFFSET(_xlpm.x, -2, 0)), NOT(ISNUMBER(OFFSET(_xlpm.x, -2, 0))) ) ), 0, IF(AND( IFERROR(OFFSET(_xlpm.x, -1, 0) = 0, FALSE), OR( ISERROR(OFFSET(_xlpm.x, -2, 0)), ISBLANK(OFFSET(_xlpm.x, -2, 0)), NOT(ISNUMBER(OFFSET(_xlpm.x, -2, 0))), IFERROR(OFFSET(_xlpm.x, -2, 0) <> 0, FALSE) ) ), 1, OFFSET(_xlpm.x, -1, 0) + OFFSET(_xlpm.x, -2, 0) ))))(INDIRECT(ADDRESS(ROW(), COLUMN()))) -> 1 | G3: =_xlfn.LAMBDA(_xlpm.x, _xlfn.LET( _xlpm.a, OFFSET(_xlpm.x, -2, 0), _xlpm.b, OFFSET(_xlpm.x, -1, 0), IF(OR(ISERROR(_xlpm.b), ISBLANK(_xlpm.b), NOT(ISNUMBER(_xlpm.b))), 0, IF(AND(IFERROR(_xlpm.b <> 0, FALSE), OR( ISERROR(_xlpm.a), ISBLANK(_xlpm.a), NOT(ISNUMBER(_xlpm.a)))), 0, IF(AND( IFERROR(_xlpm.b = 0, FALSE), OR( ISERROR(_xlpm.a), ISBLANK(_xlpm.a), NOT(ISNUMBER(_xlpm.a)), IFERROR(_xlpm.a <> 0, FALSE))), 1, _xlpm.a + _xlpm.b )))))(INDIRECT(ADDRESS(ROW(), COLUMN()))) -> 1 | I3: =IterFiboOffset(INDIRECT(ADDRESS(ROW(), COLUMN()))) -> 1 | K3: 1 | M3: 1 | O3: =IterFiboOffset(INDIRECT(ADDRESS(ROW(), COLUMN()))) -> 1
A4: =_xlfn.LAMBDA(_xlpm.a,_xlpm.b, _xlpm.a + _xlpm.b)(A2, A3) -> 1 | C4: =_xlfn.LAMBDA(_xlpm.x, OFFSET(_xlpm.x, -1, 0) + OFFSET(_xlpm.x, -2, 0))(INDIRECT(ADDRESS(ROW(), COLUMN()))) -> 1 | E4: =_xlfn.LAMBDA(_xlpm.x, IF( OR( ISERROR(OFFSET(_xlpm.x, -1, 0)), ISBLANK(OFFSET(_xlpm.x, -1, 0)), NOT(ISNUMBER(OFFSET(_xlpm.x, -1, 0))) ), 0, IF(AND( IFERROR(OFFSET(_xlpm.x, -1, 0) <> 0, FALSE), OR( ISERROR(OFFSET(_xlpm.x, -2, 0)), ISBLANK(OFFSET(_xlpm.x, -2, 0)), NOT(ISNUMBER(OFFSET(_xlpm.x, -2, 0))) ) ), 0, IF(AND( IFERROR(OFFSET(_xlpm.x, -1, 0) = 0, FALSE), OR( ISERROR(OFFSET(_xlpm.x, -2, 0)), ISBLANK(OFFSET(_xlpm.x, -2, 0)), NOT(ISNUMBER(OFFSET(_xlpm.x, -2, 0))), IFERROR(OFFSET(_xlpm.x, -2, 0) <> 0, FALSE) ) ), 1, OFFSET(_xlpm.x, -1, 0) + OFFSET(_xlpm.x, -2, 0) ))))(INDIRECT(ADDRESS(ROW(), COLUMN()))) -> 1 | G4: =_xlfn.LAMBDA(_xlpm.x, _xlfn.LET( _xlpm.a, OFFSET(_xlpm.x, -2, 0), _xlpm.b, OFFSET(_xlpm.x, -1, 0), IF(OR(ISERROR(_xlpm.b), ISBLANK(_xlpm.b), NOT(ISNUMBER(_xlpm.b))), 0, IF(AND(IFERROR(_xlpm.b <> 0, FALSE), OR( ISERROR(_xlpm.a), ISBLANK(_xlpm.a), NOT(ISNUMBER(_xlpm.a)))), 0, IF(AND( IFERROR(_xlpm.b = 0, FALSE), OR( ISERROR(_xlpm.a), ISBLANK(_xlpm.a), NOT(ISNUMBER(_xlpm.a)), IFERROR(_xlpm.a <> 0, FALSE))), 1, _xlpm.a + _xlpm.b )))))(INDIRECT(ADDRESS(ROW(), COLUMN()))) -> 1 | I4: =IterFiboOffset(INDIRECT(ADDRESS(ROW(), COLUMN()))) -> 1 | K4: 1 | M4: 2 | O4: =IterFiboOffset(INDIRECT(ADDRESS(ROW(), COLUMN()))) -> 1
A5: =_xlfn.LAMBDA(_xlpm.a,_xlpm.b, _xlpm.a + _xlpm.b)(A3, A4) -> 2 | C5: =_xlfn.LAMBDA(_xlpm.x, OFFSET(_xlpm.x, -1, 0) + OFFSET(_xlpm.x, -2, 0))(INDIRECT(ADDRESS(ROW(), COLUMN()))) -> 2 | E5: =_xlfn.LAMBDA(_xlpm.x, IF( OR( ISERROR(OFFSET(_xlpm.x, -1, 0)), ISBLANK(OFFSET(_xlpm.x, -1, 0)), NOT(ISNUMBER(OFFSET(_xlpm.x, -1, 0))) ), 0, IF(AND( IFERROR(OFFSET(_xlpm.x, -1, 0) <> 0, FALSE), OR( ISERROR(OFFSET(_xlpm.x, -2, 0)), ISBLANK(OFFSET(_xlpm.x, -2, 0)), NOT(ISNUMBER(OFFSET(_xlpm.x, -2, 0))) ) ), 0, IF(AND( IFERROR(OFFSET(_xlpm.x, -1, 0) = 0, FALSE), OR( ISERROR(OFFSET(_xlpm.x, -2, 0)), ISBLANK(OFFSET(_xlpm.x, -2, 0)), NOT(ISNUMBER(OFFSET(_xlpm.x, -2, 0))), IFERROR(OFFSET(_xlpm.x, -2, 0) <> 0, FALSE) ) ), 1, OFFSET(_xlpm.x, -1, 0) + OFFSET(_xlpm.x, -2, 0) ))))(INDIRECT(ADDRESS(ROW(), COLUMN()))) -> 2 | G5: =_xlfn.LAMBDA(_xlpm.x, _xlfn.LET( _xlpm.a, OFFSET(_xlpm.x, -2, 0), _xlpm.b, OFFSET(_xlpm.x, -1, 0), IF(OR(ISERROR(_xlpm.b), ISBLANK(_xlpm.b), NOT(ISNUMBER(_xlpm.b))), 0, IF(AND(IFERROR(_xlpm.b <> 0, FALSE), OR( ISERROR(_xlpm.a), ISBLANK(_xlpm.a), NOT(ISNUMBER(_xlpm.a)))), 0, IF(AND( IFERROR(_xlpm.b = 0, FALSE), OR( ISERROR(_xlpm.a), ISBLANK(_xlpm.a), NOT(ISNUMBER(_xlpm.a)), IFERROR(_xlpm.a <> 0, FALSE))), 1, _xlpm.a + _xlpm.b )))))(INDIRECT(ADDRESS(ROW(), COLUMN()))) -> 2 | I5: =IterFiboOffset(INDIRECT(ADDRESS(ROW(), COLUMN()))) -> 2 | K5: 2 | M5: 3 | O5: =IterFiboOffset(INDIRECT(ADDRESS(ROW(), COLUMN()))) -> 2
A6: =_xlfn.LAMBDA(_xlpm.a,_xlpm.b, _xlpm.a + _xlpm.b)(A4, A5) -> 3 | C6: =_xlfn.LAMBDA(_xlpm.x, OFFSET(_xlpm.x, -1, 0) + OFFSET(_xlpm.x, -2, 0))(INDIRECT(ADDRESS(ROW(), COLUMN()))) -> 3 | E6: =_xlfn.LAMBDA(_xlpm.x, IF( OR( ISERROR(OFFSET(_xlpm.x, -1, 0)), ISBLANK(OFFSET(_xlpm.x, -1, 0)), NOT(ISNUMBER(OFFSET(_xlpm.x, -1, 0))) ), 0, IF(AND( IFERROR(OFFSET(_xlpm.x, -1, 0) <> 0, FALSE), OR( ISERROR(OFFSET(_xlpm.x, -2, 0)), ISBLANK(OFFSET(_xlpm.x, -2, 0)), NOT(ISNUMBER(OFFSET(_xlpm.x, -2, 0))) ) ), 0, IF(AND( IFERROR(OFFSET(_xlpm.x, -1, 0) = 0, FALSE), OR( ISERROR(OFFSET(_xlpm.x, -2, 0)), ISBLANK(OFFSET(_xlpm.x, -2, 0)), NOT(ISNUMBER(OFFSET(_xlpm.x, -2, 0))), IFERROR(OFFSET(_xlpm.x, -2, 0) <> 0, FALSE) ) ), 1, OFFSET(_xlpm.x, -1, 0) + OFFSET(_xlpm.x, -2, 0) ))))(INDIRECT(ADDRESS(ROW(), COLUMN()))) -> 3 | G6: =_xlfn.LAMBDA(_xlpm.x, _xlfn.LET( _xlpm.a, OFFSET(_xlpm.x, -2, 0), _xlpm.b, OFFSET(_xlpm.x, -1, 0), IF(OR(ISERROR(_xlpm.b), ISBLANK(_xlpm.b), NOT(ISNUMBER(_xlpm.b))), 0, IF(AND(IFERROR(_xlpm.b <> 0, FALSE), OR( ISERROR(_xlpm.a), ISBLANK(_xlpm.a), NOT(ISNUMBER(_xlpm.a)))), 0, IF(AND( IFERROR(_xlpm.b = 0, FALSE), OR( ISERROR(_xlpm.a), ISBLANK(_xlpm.a), NOT(ISNUMBER(_xlpm.a)), IFERROR(_xlpm.a <> 0, FALSE))), 1, _xlpm.a + _xlpm.b )))))(INDIRECT(ADDRESS(ROW(), COLUMN()))) -> 3 | I6: =IterFiboOffset(INDIRECT(ADDRESS(ROW(), COLUMN()))) -> 3 | K6: 3 | M6: 5 | O6: =IterFiboOffset(INDIRECT(ADDRESS(ROW(), COLUMN()))) -> 3
A7: =_xlfn.LAMBDA(_xlpm.a,_xlpm.b, _xlpm.a + _xlpm.b)(A5, A6) -> 5 | C7: =_xlfn.LAMBDA(_xlpm.x, OFFSET(_xlpm.x, -1, 0) + OFFSET(_xlpm.x, -2, 0))(INDIRECT(ADDRESS(ROW(), COLUMN()))) -> 5 | E7: =_xlfn.LAMBDA(_xlpm.x, IF( OR( ISERROR(OFFSET(_xlpm.x, -1, 0)), ISBLANK(OFFSET(_xlpm.x, -1, 0)), NOT(ISNUMBER(OFFSET(_xlpm.x, -1, 0))) ), 0, IF(AND( IFERROR(OFFSET(_xlpm.x, -1, 0) <> 0, FALSE), OR( ISERROR(OFFSET(_xlpm.x, -2, 0)), ISBLANK(OFFSET(_xlpm.x, -2, 0)), NOT(ISNUMBER(OFFSET(_xlpm.x, -2, 0))) ) ), 0, IF(AND( IFERROR(OFFSET(_xlpm.x, -1, 0) = 0, FALSE), OR( ISERROR(OFFSET(_xlpm.x, -2, 0)), ISBLANK(OFFSET(_xlpm.x, -2, 0)), NOT(ISNUMBER(OFFSET(_xlpm.x, -2, 0))), IFERROR(OFFSET(_xlpm.x, -2, 0) <> 0, FALSE) ) ), 1, OFFSET(_xlpm.x, -1, 0) + OFFSET(_xlpm.x, -2, 0) ))))(INDIRECT(ADDRESS(ROW(), COLUMN()))) -> 5 | G7: =_xlfn.LAMBDA(_xlpm.x, _xlfn.LET( _xlpm.a, OFFSET(_xlpm.x, -2, 0), _xlpm.b, OFFSET(_xlpm.x, -1, 0), IF(OR(ISERROR(_xlpm.b), ISBLANK(_xlpm.b), NOT(ISNUMBER(_xlpm.b))), 0, IF(AND(IFERROR(_xlpm.b <> 0, FALSE), OR( ISERROR(_xlpm.a), ISBLANK(_xlpm.a), NOT(ISNUMBER(_xlpm.a)))), 0, IF(AND( IFERROR(_xlpm.b = 0, FALSE), OR( ISERROR(_xlpm.a), ISBLANK(_xlpm.a), NOT(ISNUMBER(_xlpm.a)), IFERROR(_xlpm.a <> 0, FALSE))), 1, _xlpm.a + _xlpm.b )))))(INDIRECT(ADDRESS(ROW(), COLUMN()))) -> 5 | I7: =IterFiboOffset(INDIRECT(ADDRESS(ROW(), COLUMN()))) -> 5 | K7: 5 | M7: 8 | O7: =IterFiboOffset(INDIRECT(ADDRESS(ROW(), COLUMN()))) -> 5
A8: =_xlfn.LAMBDA(_xlpm.a,_xlpm.b, _xlpm.a + _xlpm.b)(A6, A7) -> 8 | C8: =_xlfn.LAMBDA(_xlpm.x, OFFSET(_xlpm.x, -1, 0) + OFFSET(_xlpm.x, -2, 0))(INDIRECT(ADDRESS(ROW(), COLUMN()))) -> 8 | E8: =_xlfn.LAMBDA(_xlpm.x, IF( OR( ISERROR(OFFSET(_xlpm.x, -1, 0)), ISBLANK(OFFSET(_xlpm.x, -1, 0)), NOT(ISNUMBER(OFFSET(_xlpm.x, -1, 0))) ), 0, IF(AND( IFERROR(OFFSET(_xlpm.x, -1, 0) <> 0, FALSE), OR( ISERROR(OFFSET(_xlpm.x, -2, 0)), ISBLANK(OFFSET(_xlpm.x, -2, 0)), NOT(ISNUMBER(OFFSET(_xlpm.x, -2, 0))) ) ), 0, IF(AND( IFERROR(OFFSET(_xlpm.x, -1, 0) = 0, FALSE), OR( ISERROR(OFFSET(_xlpm.x, -2, 0)), ISBLANK(OFFSET(_xlpm.x, -2, 0)), NOT(ISNUMBER(OFFSET(_xlpm.x, -2, 0))), IFERROR(OFFSET(_xlpm.x, -2, 0) <> 0, FALSE) ) ), 1, OFFSET(_xlpm.x, -1, 0) + OFFSET(_xlpm.x, -2, 0) ))))(INDIRECT(ADDRESS(ROW(), COLUMN()))) -> 8 | G8: =_xlfn.LAMBDA(_xlpm.x, _xlfn.LET( _xlpm.a, OFFSET(_xlpm.x, -2, 0), _xlpm.b, OFFSET(_xlpm.x, -1, 0), IF(OR(ISERROR(_xlpm.b), ISBLANK(_xlpm.b), NOT(ISNUMBER(_xlpm.b))), 0, IF(AND(IFERROR(_xlpm.b <> 0, FALSE), OR( ISERROR(_xlpm.a), ISBLANK(_xlpm.a), NOT(ISNUMBER(_xlpm.a)))), 0, IF(AND( IFERROR(_xlpm.b = 0, FALSE), OR( ISERROR(_xlpm.a), ISBLANK(_xlpm.a), NOT(ISNUMBER(_xlpm.a)), IFERROR(_xlpm.a <> 0, FALSE))), 1, _xlpm.a + _xlpm.b )))))(INDIRECT(ADDRESS(ROW(), COLUMN()))) -> 8 | I8: =IterFiboOffset(INDIRECT(ADDRESS(ROW(), COLUMN()))) -> 8 | K8: 8 | M8: 13 | O8: =IterFiboOffset(INDIRECT(ADDRESS(ROW(), COLUMN()))) -> 8
A9: =_xlfn.LAMBDA(_xlpm.a,_xlpm.b, _xlpm.a + _xlpm.b)(A7, A8) -> 13 | C9: =_xlfn.LAMBDA(_xlpm.x, OFFSET(_xlpm.x, -1, 0) + OFFSET(_xlpm.x, -2, 0))(INDIRECT(ADDRESS(ROW(), COLUMN()))) -> 13 | E9: =_xlfn.LAMBDA(_xlpm.x, IF( OR( ISERROR(OFFSET(_xlpm.x, -1, 0)), ISBLANK(OFFSET(_xlpm.x, -1, 0)), NOT(ISNUMBER(OFFSET(_xlpm.x, -1, 0))) ), 0, IF(AND( IFERROR(OFFSET(_xlpm.x, -1, 0) <> 0, FALSE), OR( ISERROR(OFFSET(_xlpm.x, -2, 0)), ISBLANK(OFFSET(_xlpm.x, -2, 0)), NOT(ISNUMBER(OFFSET(_xlpm.x, -2, 0))) ) ), 0, IF(AND( IFERROR(OFFSET(_xlpm.x, -1, 0) = 0, FALSE), OR( ISERROR(OFFSET(_xlpm.x, -2, 0)), ISBLANK(OFFSET(_xlpm.x, -2, 0)), NOT(ISNUMBER(OFFSET(_xlpm.x, -2, 0))), IFERROR(OFFSET(_xlpm.x, -2, 0) <> 0, FALSE) ) ), 1, OFFSET(_xlpm.x, -1, 0) + OFFSET(_xlpm.x, -2, 0) ))))(INDIRECT(ADDRESS(ROW(), COLUMN()))) -> 13 | G9: =_xlfn.LAMBDA(_xlpm.x, _xlfn.LET( _xlpm.a, OFFSET(_xlpm.x, -2, 0), _xlpm.b, OFFSET(_xlpm.x, -1, 0), IF(OR(ISERROR(_xlpm.b), ISBLANK(_xlpm.b), NOT(ISNUMBER(_xlpm.b))), 0, IF(AND(IFERROR(_xlpm.b <> 0, FALSE), OR( ISERROR(_xlpm.a), ISBLANK(_xlpm.a), NOT(ISNUMBER(_xlpm.a)))), 0, IF(AND( IFERROR(_xlpm.b = 0, FALSE), OR( ISERROR(_xlpm.a), ISBLANK(_xlpm.a), NOT(ISNUMBER(_xlpm.a)), IFERROR(_xlpm.a <> 0, FALSE))), 1, _xlpm.a + _xlpm.b )))))(INDIRECT(ADDRESS(ROW(), COLUMN()))) -> 13 | I9: =IterFiboOffset(INDIRECT(ADDRESS(ROW(), COLUMN()))) -> 13 | K9: 13 | M9: 21 | O9: =IterFiboOffset(INDIRECT(ADDRESS(ROW(), COLUMN()))) -> 13
A10: =_xlfn.LAMBDA(_xlpm.a,_xlpm.b, _xlpm.a + _xlpm.b)(A8, A9) -> 21 | C10: =_xlfn.LAMBDA(_xlpm.x, OFFSET(_xlpm.x, -1, 0) + OFFSET(_xlpm.x, -2, 0))(INDIRECT(ADDRESS(ROW(), COLUMN()))) -> 21 | E10: =_xlfn.LAMBDA(_xlpm.x, IF( OR( ISERROR(OFFSET(_xlpm.x, -1, 0)), ISBLANK(OFFSET(_xlpm.x, -1, 0)), NOT(ISNUMBER(OFFSET(_xlpm.x, -1, 0))) ), 0, IF(AND( IFERROR(OFFSET(_xlpm.x, -1, 0) <> 0, FALSE), OR( ISERROR(OFFSET(_xlpm.x, -2, 0)), ISBLANK(OFFSET(_xlpm.x, -2, 0)), NOT(ISNUMBER(OFFSET(_xlpm.x, -2, 0))) ) ), 0, IF(AND( IFERROR(OFFSET(_xlpm.x, -1, 0) = 0, FALSE), OR( ISERROR(OFFSET(_xlpm.x, -2, 0)), ISBLANK(OFFSET(_xlpm.x, -2, 0)), NOT(ISNUMBER(OFFSET(_xlpm.x, -2, 0))), IFERROR(OFFSET(_xlpm.x, -2, 0) <> 0, FALSE) ) ), 1, OFFSET(_xlpm.x, -1, 0) + OFFSET(_xlpm.x, -2, 0) ))))(INDIRECT(ADDRESS(ROW(), COLUMN()))) -> 21 | G10: =_xlfn.LAMBDA(_xlpm.x, _xlfn.LET( _xlpm.a, OFFSET(_xlpm.x, -2, 0), _xlpm.b, OFFSET(_xlpm.x, -1, 0), IF(OR(ISERROR(_xlpm.b), ISBLANK(_xlpm.b), NOT(ISNUMBER(_xlpm.b))), 0, IF(AND(IFERROR(_xlpm.b <> 0, FALSE), OR( ISERROR(_xlpm.a), ISBLANK(_xlpm.a), NOT(ISNUMBER(_xlpm.a)))), 0, IF(AND( IFERROR(_xlpm.b = 0, FALSE), OR( ISERROR(_xlpm.a), ISBLANK(_xlpm.a), NOT(ISNUMBER(_xlpm.a)), IFERROR(_xlpm.a <> 0, FALSE))), 1, _xlpm.a + _xlpm.b )))))(INDIRECT(ADDRESS(ROW(), COLUMN()))) -> 21 | I10: =IterFiboOffset(INDIRECT(ADDRESS(ROW(), COLUMN()))) -> 21 | K10: 21 | M10: 34 | O10: =IterFiboOffset(INDIRECT(ADDRESS(ROW(), COLUMN()))) -> 21
A11: =_xlfn.LAMBDA(_xlpm.a,_xlpm.b, _xlpm.a + _xlpm.b)(A9, A10) -> 34 | C11: =_xlfn.LAMBDA(_xlpm.x, OFFSET(_xlpm.x, -1, 0) + OFFSET(_xlpm.x, -2, 0))(INDIRECT(ADDRESS(ROW(), COLUMN()))) -> 34 | E11: =_xlfn.LAMBDA(_xlpm.x, IF( OR( ISERROR(OFFSET(_xlpm.x, -1, 0)), ISBLANK(OFFSET(_xlpm.x, -1, 0)), NOT(ISNUMBER(OFFSET(_xlpm.x, -1, 0))) ), 0, IF(AND( IFERROR(OFFSET(_xlpm.x, -1, 0) <> 0, FALSE), OR( ISERROR(OFFSET(_xlpm.x, -2, 0)), ISBLANK(OFFSET(_xlpm.x, -2, 0)), NOT(ISNUMBER(OFFSET(_xlpm.x, -2, 0))) ) ), 0, IF(AND( IFERROR(OFFSET(_xlpm.x, -1, 0) = 0, FALSE), OR( ISERROR(OFFSET(_xlpm.x, -2, 0)), ISBLANK(OFFSET(_xlpm.x, -2, 0)), NOT(ISNUMBER(OFFSET(_xlpm.x, -2, 0))), IFERROR(OFFSET(_xlpm.x, -2, 0) <> 0, FALSE) ) ), 1, OFFSET(_xlpm.x, -1, 0) + OFFSET(_xlpm.x, -2, 0) ))))(INDIRECT(ADDRESS(ROW(), COLUMN()))) -> 34 | G11: =_xlfn.LAMBDA(_xlpm.x, _xlfn.LET( _xlpm.a, OFFSET(_xlpm.x, -2, 0), _xlpm.b, OFFSET(_xlpm.x, -1, 0), IF(OR(ISERROR(_xlpm.b), ISBLANK(_xlpm.b), NOT(ISNUMBER(_xlpm.b))), 0, IF(AND(IFERROR(_xlpm.b <> 0, FALSE), OR( ISERROR(_xlpm.a), ISBLANK(_xlpm.a), NOT(ISNUMBER(_xlpm.a)))), 0, IF(AND( IFERROR(_xlpm.b = 0, FALSE), OR( ISERROR(_xlpm.a), ISBLANK(_xlpm.a), NOT(ISNUMBER(_xlpm.a)), IFERROR(_xlpm.a <> 0, FALSE))), 1, _xlpm.a + _xlpm.b )))))(INDIRECT(ADDRESS(ROW(), COLUMN()))) -> 34 | I11: =IterFiboOffset(INDIRECT(ADDRESS(ROW(), COLUMN()))) -> 34 | K11: 34 | M11: 55 | O11: =IterFiboOffset(INDIRECT(ADDRESS(ROW(), COLUMN()))) -> 34
A12: =_xlfn.LAMBDA(_xlpm.a,_xlpm.b, _xlpm.a + _xlpm.b)(A10, A11) -> 55 | C12: =_xlfn.LAMBDA(_xlpm.x, OFFSET(_xlpm.x, -1, 0) + OFFSET(_xlpm.x, -2, 0))(INDIRECT(ADDRESS(ROW(), COLUMN()))) -> 55 | E12: =_xlfn.LAMBDA(_xlpm.x, IF( OR( ISERROR(OFFSET(_xlpm.x, -1, 0)), ISBLANK(OFFSET(_xlpm.x, -1, 0)), NOT(ISNUMBER(OFFSET(_xlpm.x, -1, 0))) ), 0, IF(AND( IFERROR(OFFSET(_xlpm.x, -1, 0) <> 0, FALSE), OR( ISERROR(OFFSET(_xlpm.x, -2, 0)), ISBLANK(OFFSET(_xlpm.x, -2, 0)), NOT(ISNUMBER(OFFSET(_xlpm.x, -2, 0))) ) ), 0, IF(AND( IFERROR(OFFSET(_xlpm.x, -1, 0) = 0, FALSE), OR( ISERROR(OFFSET(_xlpm.x, -2, 0)), ISBLANK(OFFSET(_xlpm.x, -2, 0)), NOT(ISNUMBER(OFFSET(_xlpm.x, -2, 0))), IFERROR(OFFSET(_xlpm.x, -2, 0) <> 0, FALSE) ) ), 1, OFFSET(_xlpm.x, -1, 0) + OFFSET(_xlpm.x, -2, 0) ))))(INDIRECT(ADDRESS(ROW(), COLUMN()))) -> 55 | G12: =_xlfn.LAMBDA(_xlpm.x, _xlfn.LET( _xlpm.a, OFFSET(_xlpm.x, -2, 0), _xlpm.b, OFFSET(_xlpm.x, -1, 0), IF(OR(ISERROR(_xlpm.b), ISBLANK(_xlpm.b), NOT(ISNUMBER(_xlpm.b))), 0, IF(AND(IFERROR(_xlpm.b <> 0, FALSE), OR( ISERROR(_xlpm.a), ISBLANK(_xlpm.a), NOT(ISNUMBER(_xlpm.a)))), 0, IF(AND( IFERROR(_xlpm.b = 0, FALSE), OR( ISERROR(_xlpm.a), ISBLANK(_xlpm.a), NOT(ISNUMBER(_xlpm.a)), IFERROR(_xlpm.a <> 0, FALSE))), 1, _xlpm.a + _xlpm.b )))))(INDIRECT(ADDRESS(ROW(), COLUMN()))) -> 55 | I12: =IterFiboOffset(INDIRECT(ADDRESS(ROW(), COLUMN()))) -> 55 | K12: 55 | M12: 89 | O12: =IterFiboOffset(INDIRECT(ADDRESS(ROW(), COLUMN()))) -> 55

Sheet Fibo Iter Reduce
A1: Vstack | B1: Accumulate | E1: F_N | G1: F_N
A2: =_xlfn.VSTACK(1,1) -> 1 | E2: =_xlfn.LAMBDA(_xlpm.n, IF(_xlpm.n=1, 1, _xlfn.REDUCE(1,_xlfn.SEQUENCE(_xlpm.n-1), _xlfn.LAMBDA(_xlpm.b,_xlpm._,_xlfn.VSTACK(_xlpm.b,SUM(_xlfn.TAKE(_xlpm.b,-2)))))))(10) -> 1 | G2: =IterFiboReduce(10) -> 1
A3: 1 | B3: =_xlfn.REDUCE(, _xlfn.TAKE($A$2:A3, -2), _xlfn.LAMBDA(_xlpm.a,_xlpm.b, _xlpm.a+_xlpm.b)) -> 2 | C3: =_xlfn.FORMULATEXT(B3) -> =REDUCE(, TAKE($A$2:A3, -2), LAMBDA(a,b, a+b)) | E3: 1 | G3: 1
A4: =B3 -> 2 | B4: =_xlfn.REDUCE(, _xlfn.TAKE($A$2:A4, -2), _xlfn.LAMBDA(_xlpm.a,_xlpm.b, _xlpm.a+_xlpm.b)) -> 3 | C4: =_xlfn.FORMULATEXT(B4) -> =REDUCE(, TAKE($A$2:A4, -2), LAMBDA(a,b, a+b)) | E4: 2 | G4: 2
A5: =B4 -> 3 | B5: =_xlfn.REDUCE(, _xlfn.TAKE($A$2:A5, -2), _xlfn.LAMBDA(_xlpm.a,_xlpm.b, _xlpm.a+_xlpm.b)) -> 5 | C5: =REDUCE(, TAKE($A$2:A5, -2), LAMBDA(a,b, a+b)) | E5: 3 | G5: 3
A6: 5 | B6: =_xlfn.REDUCE(, _xlfn.TAKE($A$2:A6, -2), _xlfn.LAMBDA(_xlpm.a,_xlpm.b, _xlpm.a+_xlpm.b)) -> 8 | C6: =REDUCE(, TAKE($A$2:A6, -2), LAMBDA(a,b, a+b)) | E6: 5 | G6: 5
A7: 8 | B7: =_xlfn.REDUCE(, _xlfn.TAKE($A$2:A7, -2), _xlfn.LAMBDA(_xlpm.a,_xlpm.b, _xlpm.a+_xlpm.b)) -> 13 | C7: =REDUCE(, TAKE($A$2:A7, -2), LAMBDA(a,b, a+b)) | E7: 8 | G7: 8
A8: 13 | B8: =_xlfn.REDUCE(, _xlfn.TAKE($A$2:A8, -2), _xlfn.LAMBDA(_xlpm.a,_xlpm.b, _xlpm.a+_xlpm.b)) -> 21 | C8: =REDUCE(, TAKE($A$2:A8, -2), LAMBDA(a,b, a+b)) | E8: 13 | G8: 13
A9: 21 | B9: =_xlfn.REDUCE(, _xlfn.TAKE($A$2:A9, -2), _xlfn.LAMBDA(_xlpm.a,_xlpm.b, _xlpm.a+_xlpm.b)) -> 34 | C9: =REDUCE(, TAKE($A$2:A9, -2), LAMBDA(a,b, a+b)) | E9: 21 | G9: 21
A10: 34 | B10: =_xlfn.REDUCE(, _xlfn.TAKE($A$2:A10, -2), _xlfn.LAMBDA(_xlpm.a,_xlpm.b, _xlpm.a+_xlpm.b)) -> 55 | C10: =REDUCE(, TAKE($A$2:A10, -2), LAMBDA(a,b, a+b)) | E10: 34 | G10: 34
A11: 55 | B11: =_xlfn.REDUCE(, _xlfn.TAKE($A$2:A11, -2), _xlfn.LAMBDA(_xlpm.a,_xlpm.b, _xlpm.a+_xlpm.b)) -> 89 | C11: =REDUCE(, TAKE($A$2:A11, -2), LAMBDA(a,b, a+b)) | E11: 55 | G11: 55

Sheet Fibo Matrix
A2: Start | B2: =_xlfn.MAKEARRAY(2, 2, _xlfn.LAMBDA(_xlpm.r,_xlpm.c, IF(_xlpm.r*_xlpm.c < 3, 1, 0))) -> 1 | C2: 1
B3: 1 | C3: 0
A6: n | B6: =_xlfn.SEQUENCE(, 21, 0) -> 0 | C6: 1 | D6: 2 | E6: 3 | F6: 4 | G6: 5 | H6: 6 | I6: 7 | J6: 8 | K6: 9 | L6: 10 | M6: 11 | N6: 12 | O6: 13 | P6: 14 | Q6: 15 | R6: 16 | S6: 17 | T6: 18 | U6: 19 | V6: 20
A7: F(n+1) | B7: =_xlfn.SEQUENCE(2,,1,-1) -> 1 | C7: =MMULT(_xlfn.ANCHORARRAY($B$2),_xlfn.ANCHORARRAY( B7)) -> 1 | D7: =MMULT(_xlfn.ANCHORARRAY($B$2),_xlfn.ANCHORARRAY( C7)) -> 2 | E7: =MMULT(_xlfn.ANCHORARRAY($B$2),_xlfn.ANCHORARRAY( D7)) -> 3 | F7: =MMULT(_xlfn.ANCHORARRAY($B$2),_xlfn.ANCHORARRAY( E7)) -> 5 | G7: =MMULT(_xlfn.ANCHORARRAY($B$2),_xlfn.ANCHORARRAY( F7)) -> 8 | H7: =MMULT(_xlfn.ANCHORARRAY($B$2),_xlfn.ANCHORARRAY( G7)) -> 13 | I7: =MMULT(_xlfn.ANCHORARRAY($B$2),_xlfn.ANCHORARRAY( H7)) -> 21 | J7: =MMULT(_xlfn.ANCHORARRAY($B$2),_xlfn.ANCHORARRAY( I7)) -> 34 | K7: =MMULT(_xlfn.ANCHORARRAY($B$2),_xlfn.ANCHORARRAY( J7)) -> 55 | L7: =MMULT(_xlfn.ANCHORARRAY($B$2),_xlfn.ANCHORARRAY( K7)) -> 89 | M7: =MMULT(_xlfn.ANCHORARRAY($B$2),_xlfn.ANCHORARRAY( L7)) -> 144 | N7: =MMULT(_xlfn.ANCHORARRAY($B$2),_xlfn.ANCHORARRAY( M7)) -> 233 | O7: =MMULT(_xlfn.ANCHORARRAY($B$2),_xlfn.ANCHORARRAY( N7)) -> 377 | P7: =MMULT(_xlfn.ANCHORARRAY($B$2),_xlfn.ANCHORARRAY( O7)) -> 610 | Q7: =MMULT(_xlfn.ANCHORARRAY($B$2),_xlfn.ANCHORARRAY( P7)) -> 987 | R7: =MMULT(_xlfn.ANCHORARRAY($B$2),_xlfn.ANCHORARRAY( Q7)) -> 1597 | S7: =MMULT(_xlfn.ANCHORARRAY($B$2),_xlfn.ANCHORARRAY( R7)) -> 2584 | T7: =MMULT(_xlfn.ANCHORARRAY($B$2),_xlfn.ANCHORARRAY( S7)) -> 4181 | U7: =MMULT(_xlfn.ANCHORARRAY($B$2),_xlfn.ANCHORARRAY( T7)) -> 6765 | V7: =MMULT(_xlfn.ANCHORARRAY($B$2),_xlfn.ANCHORARRAY( U7)) -> 10946
A8: F(n) | B8: 0 | C8: 1 | D8: 1 | E8: 2 | F8: 3 | G8: 5 | H8: 8 | I8: 13 | J8: 21 | K8: 34 | L8: 55 | M8: 89 | N8: 144 | O8: 233 | P8: 377 | Q8: 610 | R8: 987 | S8: 1597 | T8: 2584 | U8: 4181 | V8: 6765
A10: F(n+1) | B10: =_xlfn.VSTACK(1, 0) -> 1 | C10: =_xlfn.LAMBDA(_xlpm.col_vector, MMULT({1,1;1,0}, _xlpm.col_vector))(_xlfn.ANCHORARRAY(B10)) -> 1 | D10: =_xlfn.LAMBDA(_xlpm.col_vector, MMULT({1,1;1,0}, _xlpm.col_vector))(_xlfn.ANCHORARRAY(C10)) -> 2 | E10: =_xlfn.LAMBDA(_xlpm.col_vector, MMULT({1,1;1,0}, _xlpm.col_vector))(_xlfn.ANCHORARRAY(D10)) -> 3 | F10: =_xlfn.LAMBDA(_xlpm.col_vector, MMULT({1,1;1,0}, _xlpm.col_vector))(_xlfn.ANCHORARRAY(E10)) -> 5 | G10: =_xlfn.LAMBDA(_xlpm.col_vector, MMULT({1,1;1,0}, _xlpm.col_vector))(_xlfn.ANCHORARRAY(F10)) -> 8 | H10: =_xlfn.LAMBDA(_xlpm.col_vector, MMULT({1,1;1,0}, _xlpm.col_vector))(_xlfn.ANCHORARRAY(G10)) -> 13 | I10: =_xlfn.LAMBDA(_xlpm.col_vector, MMULT({1,1;1,0}, _xlpm.col_vector))(_xlfn.ANCHORARRAY(H10)) -> 21 | J10: =_xlfn.LAMBDA(_xlpm.col_vector, MMULT({1,1;1,0}, _xlpm.col_vector))(_xlfn.ANCHORARRAY(I10)) -> 34 | K10: =_xlfn.LAMBDA(_xlpm.col_vector, MMULT({1,1;1,0}, _xlpm.col_vector))(_xlfn.ANCHORARRAY(J10)) -> 55 | L10: =_xlfn.LAMBDA(_xlpm.col_vector, MMULT({1,1;1,0}, _xlpm.col_vector))(_xlfn.ANCHORARRAY(K10)) -> 89 | M10: =_xlfn.LAMBDA(_xlpm.col_vector, MMULT({1,1;1,0}, _xlpm.col_vector))(_xlfn.ANCHORARRAY(L10)) -> 144 | N10: =_xlfn.LAMBDA(_xlpm.col_vector, MMULT({1,1;1,0}, _xlpm.col_vector))(_xlfn.ANCHORARRAY(M10)) -> 233 | O10: =_xlfn.LAMBDA(_xlpm.col_vector, MMULT({1,1;1,0}, _xlpm.col_vector))(_xlfn.ANCHORARRAY(N10)) -> 377 | P10: =_xlfn.LAMBDA(_xlpm.col_vector, MMULT({1,1;1,0}, _xlpm.col_vector))(_xlfn.ANCHORARRAY(O10)) -> 610 | Q10: =_xlfn.LAMBDA(_xlpm.col_vector, MMULT({1,1;1,0}, _xlpm.col_vector))(_xlfn.ANCHORARRAY(P10)) -> 987 | R10: =_xlfn.LAMBDA(_xlpm.col_vector, MMULT({1,1;1,0}, _xlpm.col_vector))(_xlfn.ANCHORARRAY(Q10)) -> 1597 | S10: =_xlfn.LAMBDA(_xlpm.col_vector, MMULT({1,1;1,0}, _xlpm.col_vector))(_xlfn.ANCHORARRAY(R10)) -> 2584 | T10: =_xlfn.LAMBDA(_xlpm.col_vector, MMULT({1,1;1,0}, _xlpm.col_vector))(_xlfn.ANCHORARRAY(S10)) -> 4181 | U10: =_xlfn.LAMBDA(_xlpm.col_vector, MMULT({1,1;1,0}, _xlpm.col_vector))(_xlfn.ANCHORARRAY(T10)) -> 6765 | V10: =_xlfn.LAMBDA(_xlpm.col_vector, MMULT({1,1;1,0}, _xlpm.col_vector))(_xlfn.ANCHORARRAY(U10)) -> 10946
A11: F(n) | B11: 0 | C11: 1 | D11: 1 | E11: 2 | F11: 3 | G11: 5 | H11: 8 | I11: 13 | J11: 21 | K11: 34 | L11: 55 | M11: 89 | N11: 144 | O11: 233 | P11: 377 | Q11: 610 | R11: 987 | S11: 1597 | T11: 2584 | U11: 4181 | V11: 6765
A16: Automation | E16: =_xlfn.FORMULATEXT(E17) -> =FiboTermMatrix(B17) | H16: =_xlfn.FORMULATEXT(H17) -> =FiboMatrixMult(B17)
A17: N | B17: 10 | D17: Term | E17: =FiboTermMatrix(B17) -> 55 | G17: Sequence | H17: =FiboMatrixMult(B17) -> 1
H18: 1
H19: 2
H20: 3
H21: 5
H22: 8
H23: 13
H24: 21
H25: 34
H26: 55

Sheet Fibo Recursive
A1: N | B1: F_N | D1: F_N | F1: F_N | H1: UDF
A2: =_xlfn.SEQUENCE(20) -> 1 | B2: =RecursiveFibo(A2) -> 1 | D2: =_xlfn.LAMBDA(_xlpm.num_terms, _xlfn.MAKEARRAY(_xlpm.num_terms, 1, _xlfn.LAMBDA(_xlpm.row,_xlpm.col, RecursiveFibo(_xlpm.row))))(20) -> 1 | F2: =RecursiveFiboArray(20) -> 1 | H2: =UDF_FiboSequenceRecursive(20) -> 1
A3: 2 | B3: =RecursiveFibo(A3) -> 1 | D3: 1 | F3: 1 | H3: 1
A4: 3 | B4: =RecursiveFibo(A4) -> 2 | D4: 2 | F4: 2 | H4: 2
A5: 4 | B5: =RecursiveFibo(A5) -> 3 | D5: 3 | F5: 3 | H5: 3
A6: 5 | B6: =RecursiveFibo(A6) -> 5 | D6: 5 | F6: 5 | H6: 5
A7: 6 | B7: =RecursiveFibo(A7) -> 8 | D7: 8 | F7: 8 | H7: 8
A8: 7 | B8: =RecursiveFibo(A8) -> 13 | D8: 13 | F8: 13 | H8: 13
A9: 8 | B9: =RecursiveFibo(A9) -> 21 | D9: 21 | F9: 21 | H9: 21
A10: 9 | B10: =RecursiveFibo(A10) -> 34 | D10: 34 | F10: 34 | H10: 34
A11: 10 | B11: =RecursiveFibo(A11) -> 55 | D11: 55 | F11: 55 | H11: 55
A12: 11 | B12: =RecursiveFibo(A12) -> 89 | D12: 89 | F12: 89 | H12: 89
A13: 12 | B13: =RecursiveFibo(A13) -> 144 | D13: 144 | F13: 144 | H13: 144
A14: 13 | B14: =RecursiveFibo(A14) -> 233 | D14: 233 | F14: 233 | H14: 233
A15: 14 | B15: =RecursiveFibo(A15) -> 377 | D15: 377 | F15: 377 | H15: 377
A16: 15 | B16: =RecursiveFibo(A16) -> 610 | D16: 610 | F16: 610 | H16: 610
A17: 16 | B17: =RecursiveFibo(A17) -> 987 | D17: 987 | F17: 987 | H17: 987
A18: 17 | B18: =RecursiveFibo(A18) -> 1597 | D18: 1597 | F18: 1597 | H18: 1597
A19: 18 | B19: =RecursiveFibo(A19) -> 2584 | D19: 2584 | F19: 2584 | H19: 2584
A20: 19 | B20: =RecursiveFibo(A20) -> 4181 | D20: 4181 | F20: 4181 | H20: 4181
A21: 20 | B21: =RecursiveFibo(A21) -> 6765 | D21: 6765 | F21: 6765 | H21: 6765

Sheet Golden Ratio
A1: N | B1: F_N | C1: F_N+1 / F_N | D1: Phi = (1+SQRT(5))/2 | E1: Error
A2: 0 | B2: 0 | C2: 0 | D2: 1.618033989 | E2: 1.618033989
A3: 1 | B3: 1 | C3: 0 | D3: 1.618033989 | E3: 1.618033989
A4: 2 | B4: 1 | C4: 1 | D4: 1.618033989 | E4: 0.6180339887
A5: 3 | B5: 2 | C5: 2 | D5: 1.618033989 | E5: -0.3819660113
A6: 4 | B6: 3 | C6: 1.5 | D6: 1.618033989 | E6: 0.1180339887
A7: 5 | B7: 5 | C7: 1.666666667 | D7: 1.618033989 | E7: -0.04863267792
A8: 6 | B8: 8 | C8: 1.6 | D8: 1.618033989 | E8: 0.01803398875
A9: 7 | B9: 13 | C9: 1.625 | D9: 1.618033989 | E9: -0.00696601125
A10: 8 | B10: 21 | C10: 1.615384615 | D10: 1.618033989 | E10: 0.002649373365
A11: 9 | B11: 34 | C11: 1.619047619 | D11: 1.618033989 | E11: -0.001013630298
A12: 10 | B12: 55 | C12: 1.617647059 | D12: 1.618033989 | E12: 0.0003869299264
A13: 11 | B13: 89 | C13: 1.618181818 | D13: 1.618033989 | E13: -0.0001478294319
A14: 12 | B14: 144 | C14: 1.617977528 | D14: 1.618033989 | E14: 5.646066001e-05
A15: 13 | B15: 233 | C15: 1.618055556 | D15: 1.618033989 | E15: -2.156680566e-05
A16: 14 | B16: 377 | C16: 1.618025751 | D16: 1.618033989 | E16: 8.237676933e-06
A17: 15 | B17: 610 | C17: 1.618037135 | D17: 1.618033989 | E17: -3.14652862e-06
A18: 16 | B18: 987 | C18: 1.618032787 | D18: 1.618033989 | E18: 1.201864649e-06
A19: 17 | B19: 1597 | C19: 1.618034448 | D19: 1.618033989 | E19: -4.59071787e-07
A20: 18 | B20: 2584 | C20: 1.618033813 | D20: 1.618033989 | E20: 1.753497696e-07
A21: 19 | B21: 4181 | C21: 1.618034056 | D21: 1.618033989 | E21: -6.69776592e-08
A22: 20 | B22: 6765 | C22: 1.618033963 | D22: 1.618033989 | E22: 2.558318846e-08
A23: 21 | B23: 10946 | C23: 1.618033999 | D23: 1.618033989 | E23: -9.771908394e-09
A24: 22 | B24: 17711 | C24: 1.618033985 | D24: 1.618033989 | E24: 3.732536946e-09
A25: 23 | B25: 28657 | C25: 1.61803399 | D25: 1.618033989 | E25: -1.425702223e-09
A26: 24 | B26: 46368 | C26: 1.618033988 | D26: 1.618033989 | E26: 5.445699447e-10
A27: 25 | B27: 75025 | C27: 1.618033989 | D27: 1.618033989 | E27: -2.08007167e-10
A28: 26 | B28: 121393 | C28: 1.618033989 | D28: 1.618033989 | E28: 7.945177849e-11
A29: 27 | B29: 196418 | C29: 1.618033989 | D29: 1.618033989 | E29: -3.034772433e-11
A30: 28 | B30: 317811 | C30: 1.618033989 | D30: 1.618033989 | E30: 1.15918386e-11
A31: 29 | B31: 514229 | C31: 1.618033989 | D31: 1.618033989 | E31: -4.427569422e-12
A32: 30 | B32: 832040 | C32: 1.618033989 | D32: 1.618033989 | E32: 1.691313756e-12
A33: 31 | B33: 1346269 | C33: 1.618033989 | D33: 1.618033989 | E33: -6.459277557e-13
A34: 32 | B34: 2178309 | C34: 1.618033989 | D34: 1.618033989 | E34: 2.466915561e-13
A35: 33 | B35: 3524578 | C35: 1.618033989 | D35: 1.618033989 | E35: -9.414691249e-14
A36: 34 | B36: 5702887 | C36: 1.618033989 | D36: 1.618033989 | E36: 3.5971226e-14
A37: 35 | B37: 9227465 | C37: 1.618033989 | D37: 1.618033989 | E37: -1.376676551e-14
A38: 36 | B38: 14930352 | C38: 1.618033989 | D38: 1.618033989 | E38: 5.329070518e-15
A39: 37 | B39: 24157817 | C39: 1.618033989 | D39: 1.618033989 | E39: -1.998401444e-15
A40: 38 | B40: 39088169 | C40: 1.618033989 | D40: 1.618033989 | E40: 0
A41: 39 | B41: 63245986 | C41: 1.618033989 | D41: 1.618033989 | E41: 0
A42: 40 | B42: 102334155 | C42: 1.618033989 | D42: 1.618033989 | E42: 0
A43: 41 | B43: 165580141 | C43: 1.618033989 | D43: 1.618033989 | E43: 0
A44: 42 | B44: 267914296 | C44: 1.618033989 | D44: 1.618033989 | E44: 0
A45: 43 | B45: 433494437 | C45: 1.618033989 | D45: 1.618033989 | E45: 0
A46: 44 | B46: 701408733 | C46: 1.618033989 | D46: 1.618033989 | E46: 0
A47: 45 | B47: 1134903170 | C47: 1.618033989 | D47: 1.618033989 | E47: 0
A48: 46 | B48: 1836311903 | C48: 1.618033989 | D48: 1.618033989 | E48: 0
A49: 47 | B49: 2971215073 | C49: 1.618033989 | D49: 1.618033989 | E49: 0
A50: 48 | B50: 4807526976 | C50: 1.618033989 | D50: 1.618033989 | E50: 0
A51: 49 | B51: 7778742049 | C51: 1.618033989 | D51: 1.618033989 | E51: 0
A52: 50 | B52: 12586269025 | C52: 1.618033989 | D52: 1.618033989 | E52: 0
A53: 51 | B53: 20365011074 | C53: 1.618033989 | D53: 1.618033989 | E53: 0
A54: 52 | B54: 32951280099 | C54: 1.618033989 | D54: 1.618033989 | E54: 0
A55: 53 | B55: 53316291173 | C55: 1.618033989 | D55: 1.618033989 | E55: 0
A56: 54 | B56: 86267571272 | C56: 1.618033989 | D56: 1.618033989 | E56: 0
A57: 55 | B57: 139583862445 | C57: 1.618033989 | D57: 1.618033989 | E57: 0
A58: 56 | B58: 225851433717 | C58: 1.618033989 | D58: 1.618033989 | E58: 0
A59: 57 | B59: 365435296162 | C59: 1.618033989 | D59: 1.618033989 | E59: 0
A60: 58 | B60: 591286729879 | C60: 1.618033989 | D60: 1.618033989 | E60: 0
A61: 59 | B61: 956722026041 | C61: 1.618033989 | D61: 1.618033989 | E61: 0
A62: 60 | B62: 1548008755920 | C62: 1.618033989 | D62: 1.618033989 | E62: 0
A63: 61 | B63: 2504730781961 | C63: 1.618033989 | D63: 1.618033989 | E63: 0
A64: 62 | B64: 4052739537881 | C64: 1.618033989 | D64: 1.618033989 | E64: 0
A65: 63 | B65: 6557470319842 | C65: 1.618033989 | D65: 1.618033989 | E65: 0
A66: 64 | B66: 10610209857723 | C66: 1.618033989 | D66: 1.618033989 | E66: 0
A67: 65 | B67: 17167680177565 | C67: 1.618033989 | D67: 1.618033989 | E67: 0
A68: 66 | B68: 27777890035288 | C68: 1.618033989 | D68: 1.618033989 | E68: 0
A69: 67 | B69: 44945570212853 | C69: 1.618033989 | D69: 1.618033989 | E69: 0
A70: 68 | B70: 72723460248141 | C70: 1.618033989 | D70: 1.618033989 | E70: 0
A71: 69 | B71: 117669030460994 | C71: 1.618033989 | D71: 1.618033989 | E71: 0
A72: 70 | B72: 190392490709135 | C72: 1.618033989 | D72: 1.618033989 | E72: 0
A73: 71 | B73: 308061521170129 | C73: 1.618033989 | D73: 1.618033989 | E73: 0
A74: 72 | B74: 498454011879264 | C74: 1.618033989 | D74: 1.618033989 | E74: 0
A75: 73 | B75: 806515533049393 | C75: 1.618033989 | D75: 1.618033989 | E75: 0
A76: 74 | B76: 1304969544928657 | C76: 1.618033989 | D76: 1.618033989 | E76: 0
A77: 75 | B77: 2111485077978050 | C77: 1.618033989 | D77: 1.618033989 | E77: 0
A78: 76 | B78: 3416454622906707 | C78: 1.618033989 | D78: 1.618033989 | E78: 0
A79: 77 | B79: 5527939700884757 | C79: 1.618033989 | D79: 1.618033989 | E79: 0
A80: 78 | B80: 8944394323791464 | C80: 1.618033989 | D80: 1.618033989 | E80: 0
A81: 79 | B81: 1.447233402e+16 | C81: 1.618033989 | D81: 1.618033989 | E81: 0
A82: 80 | B82: 2.341672835e+16 | C82: 1.618033989 | D82: 1.618033989 | E82: 0
A83: 81 | B83: 3.788906237e+16 | C83: 1.618033989 | D83: 1.618033989 | E83: 0
A84: 82 | B84: 6.130579072e+16 | C84: 1.618033989 | D84: 1.618033989 | E84: 0
A85: 83 | B85: 9.919485309e+16 | C85: 1.618033989 | D85: 1.618033989 | E85: 0
A86: 84 | B86: 1.605006438e+17 | C86: 1.618033989 | D86: 1.618033989 | E86: 0
A87: 85 | B87: 2.596954969e+17 | C87: 1.618033989 | D87: 1.618033989 | E87: 0
A88: 86 | B88: 4.201961407e+17 | C88: 1.618033989 | D88: 1.618033989 | E88: 0
A89: 87 | B89: 6.798916376e+17 | C89: 1.618033989 | D89: 1.618033989 | E89: 0
A90: 88 | B90: 1.100087778e+18 | C90: 1.618033989 | D90: 1.618033989 | E90: 0
A91: 89 | B91: 1.779979416e+18 | C91: 1.618033989 | D91: 1.618033989 | E91: 0
A92: 90 | B92: 2.880067194e+18 | C92: 1.618033989 | D92: 1.618033989 | E92: 0
A93: 91 | B93: 4.66004661e+18 | C93: 1.618033989 | D93: 1.618033989 | E93: 0
A94: 92 | B94: 7.540113805e+18 | C94: 1.618033989 | D94: 1.618033989 | E94: 0
A95: 93 | B95: 1.220016042e+19 | C95: 1.618033989 | D95: 1.618033989 | E95: 0
A96: 94 | B96: 1.974027422e+19 | C96: 1.618033989 | D96: 1.618033989 | E96: 0
A97: 95 | B97: 3.194043463e+19 | C97: 1.618033989 | D97: 1.618033989 | E97: 0
A98: 96 | B98: 5.168070885e+19 | C98: 1.618033989 | D98: 1.618033989 | E98: 0
A99: 97 | B99: 8.362114349e+19 | C99: 1.618033989 | D99: 1.618033989 | E99: 0
A100: 98 | B100: 1.353018523e+20 | C100: 1.618033989 | D100: 1.618033989 | E100: 0
A101: 99 | B101: 2.189229958e+20 | C101: 1.618033989 | D101: 1.618033989 | E101: 0
A102: 100 | B102: 3.542248482e+20 | C102: 1.618033989 | D102: 1.618033989 | E102: 0
A103: 101 | B103: 5.73147844e+20 | C103: 1.618033989 | D103: 1.618033989 | E103: 0
A104: 102 | B104: 9.273726922e+20 | C104: 1.618033989 | D104: 1.618033989 | E104: 0
A105: 103 | B105: 1.500520536e+21 | C105: 1.618033989 | D105: 1.618033989 | E105: 0
A106: 104 | B106: 2.427893228e+21 | C106: 1.618033989 | D106: 1.618033989 | E106: 0
A107: 105 | B107: 3.928413765e+21 | C107: 1.618033989 | D107: 1.618033989 | E107: 0
A108: 106 | B108: 6.356306993e+21 | C108: 1.618033989 | D108: 1.618033989 | E108: 0
A109: 107 | B109: 1.028472076e+22 | C109: 1.618033989 | D109: 1.618033989 | E109: 0
A110: 108 | B110: 1.664102775e+22 | C110: 1.618033989 | D110: 1.618033989 | E110: 0
A111: 109 | B111: 2.692574851e+22 | C111: 1.618033989 | D111: 1.618033989 | E111: 0
A112: 110 | B112: 4.356677626e+22 | C112: 1.618033989 | D112: 1.618033989 | E112: 0
A113: 111 | B113: 7.049252477e+22 | C113: 1.618033989 | D113: 1.618033989 | E113: 0
A114: 112 | B114: 1.14059301e+23 | C114: 1.618033989 | D114: 1.618033989 | E114: 0
A115: 113 | B115: 1.845518258e+23 | C115: 1.618033989 | D115: 1.618033989 | E115: 0
A116: 114 | B116: 2.986111268e+23 | C116: 1.618033989 | D116: 1.618033989 | E116: 0
A117: 115 | B117: 4.831629526e+23 | C117: 1.618033989 | D117: 1.618033989 | E117: 0
A118: 116 | B118: 7.817740794e+23 | C118: 1.618033989 | D118: 1.618033989 | E118: 0
A119: 117 | B119: 1.264937032e+24 | C119: 1.618033989 | D119: 1.618033989 | E119: 0
A120: 118 | B120: 2.046711111e+24 | C120: 1.618033989 | D120: 1.618033989 | E120: 0
A121: 119 | B121: 3.311648144e+24 | C121: 1.618033989 | D121: 1.618033989 | E121: 0
A122: 120 | B122: 5.358359255e+24 | C122: 1.618033989 | D122: 1.618033989 | E122: 0
A123: 121 | B123: 8.670007399e+24 | C123: 1.618033989 | D123: 1.618033989 | E123: 0
A124: 122 | B124: 1.402836665e+25 | C124: 1.618033989 | D124: 1.618033989 | E124: 0
A125: 123 | B125: 2.269837405e+25 | C125: 1.618033989 | D125: 1.618033989 | E125: 0
A126: 124 | B126: 3.672674071e+25 | C126: 1.618033989 | D126: 1.618033989 | E126: 0
A127: 125 | B127: 5.942511476e+25 | C127: 1.618033989 | D127: 1.618033989 | E127: 0
A128: 126 | B128: 9.615185546e+25 | C128: 1.618033989 | D128: 1.618033989 | E128: 0
A129: 127 | B129: 1.555769702e+26 | C129: 1.618033989 | D129: 1.618033989 | E129: 0
A130: 128 | B130: 2.517288257e+26 | C130: 1.618033989 | D130: 1.618033989 | E130: 0
A131: 129 | B131: 4.073057959e+26 | C131: 1.618033989 | D131: 1.618033989 | E131: 0
A132: 130 | B132: 6.590346216e+26 | C132: 1.618033989 | D132: 1.618033989 | E132: 0
A133: 131 | B133: 1.066340417e+27 | C133: 1.618033989 | D133: 1.618033989 | E133: 0
A134: 132 | B134: 1.725375039e+27 | C134: 1.618033989 | D134: 1.618033989 | E134: 0
A135: 133 | B135: 2.791715457e+27 | C135: 1.618033989 | D135: 1.618033989 | E135: 0
A136: 134 | B136: 4.517090496e+27 | C136: 1.618033989 | D136: 1.618033989 | E136: 0
A137: 135 | B137: 7.308805952e+27 | C137: 1.618033989 | D137: 1.618033989 | E137: 0
A138: 136 | B138: 1.182589645e+28 | C138: 1.618033989 | D138: 1.618033989 | E138: 0
A139: 137 | B139: 1.91347024e+28 | C139: 1.618033989 | D139: 1.618033989 | E139: 0
A140: 138 | B140: 3.096059885e+28 | C140: 1.618033989 | D140: 1.618033989 | E140: 0
A141: 139 | B141: 5.009530125e+28 | C141: 1.618033989 | D141: 1.618033989 | E141: 0
A142: 140 | B142: 8.10559001e+28 | C142: 1.618033989 | D142: 1.618033989 | E142: 0
A143: 141 | B143: 1.311512013e+29 | C143: 1.618033989 | D143: 1.618033989 | E143: 0
A144: 142 | B144: 2.122071014e+29 | C144: 1.618033989 | D144: 1.618033989 | E144: 0
A145: 143 | B145: 3.433583028e+29 | C145: 1.618033989 | D145: 1.618033989 | E145: 0
A146: 144 | B146: 5.555654042e+29 | C146: 1.618033989 | D146: 1.618033989 | E146: 0
A147: 145 | B147: 8.98923707e+29 | C147: 1.618033989 | D147: 1.618033989 | E147: 0
A148: 146 | B148: 1.454489111e+30 | C148: 1.618033989 | D148: 1.618033989 | E148: 0
A149: 147 | B149: 2.353412818e+30 | C149: 1.618033989 | D149: 1.618033989 | E149: 0
A150: 148 | B150: 3.807901929e+30 | C150: 1.618033989 | D150: 1.618033989 | E150: 0
A151: 149 | B151: 6.161314748e+30 | C151: 1.618033989 | D151: 1.618033989 | E151: 0
A152: 150 | B152: 9.969216677e+30 | C152: 1.618033989 | D152: 1.618033989 | E152: 0
A153: 151 | B153: 1.613053142e+31 | C153: 1.618033989 | D153: 1.618033989 | E153: 0
A154: 152 | B154: 2.60997481e+31 | C154: 1.618033989 | D154: 1.618033989 | E154: 0
A155: 153 | B155: 4.223027953e+31 | C155: 1.618033989 | D155: 1.618033989 | E155: 0
A156: 154 | B156: 6.833002763e+31 | C156: 1.618033989 | D156: 1.618033989 | E156: 0
A157: 155 | B157: 1.105603072e+32 | C157: 1.618033989 | D157: 1.618033989 | E157: 0
A158: 156 | B158: 1.788903348e+32 | C158: 1.618033989 | D158: 1.618033989 | E158: 0
A159: 157 | B159: 2.894506419e+32 | C159: 1.618033989 | D159: 1.618033989 | E159: 0
A160: 158 | B160: 4.683409767e+32 | C160: 1.618033989 | D160: 1.618033989 | E160: 0
A161: 159 | B161: 7.577916187e+32 | C161: 1.618033989 | D161: 1.618033989 | E161: 0
A162: 160 | B162: 1.226132595e+33 | C162: 1.618033989 | D162: 1.618033989 | E162: 0
A163: 161 | B163: 1.983924214e+33 | C163: 1.618033989 | D163: 1.618033989 | E163: 0
A164: 162 | B164: 3.210056809e+33 | C164: 1.618033989 | D164: 1.618033989 | E164: 0
A165: 163 | B165: 5.193981024e+33 | C165: 1.618033989 | D165: 1.618033989 | E165: 0
A166: 164 | B166: 8.404037833e+33 | C166: 1.618033989 | D166: 1.618033989 | E166: 0
A167: 165 | B167: 1.359801886e+34 | C167: 1.618033989 | D167: 1.618033989 | E167: 0
A168: 166 | B168: 2.200205669e+34 | C168: 1.618033989 | D168: 1.618033989 | E168: 0
A169: 167 | B169: 3.560007555e+34 | C169: 1.618033989 | D169: 1.618033989 | E169: 0
A170: 168 | B170: 5.760213224e+34 | C170: 1.618033989 | D170: 1.618033989 | E170: 0
A171: 169 | B171: 9.320220778e+34 | C171: 1.618033989 | D171: 1.618033989 | E171: 0
A172: 170 | B172: 1.5080434e+35 | C172: 1.618033989 | D172: 1.618033989 | E172: 0
A173: 171 | B173: 2.440065478e+35 | C173: 1.618033989 | D173: 1.618033989 | E173: 0
A174: 172 | B174: 3.948108878e+35 | C174: 1.618033989 | D174: 1.618033989 | E174: 0
A175: 173 | B175: 6.388174356e+35 | C175: 1.618033989 | D175: 1.618033989 | E175: 0
A176: 174 | B176: 1.033628323e+36 | C176: 1.618033989 | D176: 1.618033989 | E176: 0
A177: 175 | B177: 1.672445759e+36 | C177: 1.618033989 | D177: 1.618033989 | E177: 0
A178: 176 | B178: 2.706074082e+36 | C178: 1.618033989 | D178: 1.618033989 | E178: 0
A179: 177 | B179: 4.378519842e+36 | C179: 1.618033989 | D179: 1.618033989 | E179: 0
A180: 178 | B180: 7.084593924e+36 | C180: 1.618033989 | D180: 1.618033989 | E180: 0
A181: 179 | B181: 1.146311377e+37 | C181: 1.618033989 | D181: 1.618033989 | E181: 0
A182: 180 | B182: 1.854770769e+37 | C182: 1.618033989 | D182: 1.618033989 | E182: 0
A183: 181 | B183: 3.001082145e+37 | C183: 1.618033989 | D183: 1.618033989 | E183: 0
A184: 182 | B184: 4.855852914e+37 | C184: 1.618033989 | D184: 1.618033989 | E184: 0
A185: 183 | B185: 7.85693506e+37 | C185: 1.618033989 | D185: 1.618033989 | E185: 0
A186: 184 | B186: 1.271278797e+38 | C186: 1.618033989 | D186: 1.618033989 | E186: 0
A187: 185 | B187: 2.056972303e+38 | C187: 1.618033989 | D187: 1.618033989 | E187: 0
A188: 186 | B188: 3.328251101e+38 | C188: 1.618033989 | D188: 1.618033989 | E188: 0
A189: 187 | B189: 5.385223404e+38 | C189: 1.618033989 | D189: 1.618033989 | E189: 0
A190: 188 | B190: 8.713474505e+38 | C190: 1.618033989 | D190: 1.618033989 | E190: 0
A191: 189 | B191: 1.409869791e+39 | C191: 1.618033989 | D191: 1.618033989 | E191: 0
A192: 190 | B192: 2.281217241e+39 | C192: 1.618033989 | D192: 1.618033989 | E192: 0
A193: 191 | B193: 3.691087032e+39 | C193: 1.618033989 | D193: 1.618033989 | E193: 0
A194: 192 | B194: 5.972304274e+39 | C194: 1.618033989 | D194: 1.618033989 | E194: 0
A195: 193 | B195: 9.663391306e+39 | C195: 1.618033989 | D195: 1.618033989 | E195: 0
A196: 194 | B196: 1.563569558e+40 | C196: 1.618033989 | D196: 1.618033989 | E196: 0
A197: 195 | B197: 2.529908689e+40 | C197: 1.618033989 | D197: 1.618033989 | E197: 0
A198: 196 | B198: 4.093478247e+40 | C198: 1.618033989 | D198: 1.618033989 | E198: 0
A199: 197 | B199: 6.623386935e+40 | C199: 1.618033989 | D199: 1.618033989 | E199: 0
A200: 198 | B200: 1.071686518e+41 | C200: 1.618033989 | D200: 1.618033989 | E200: 0
... 802 more rows

Sheet Fibo Closed Form
A1: N | B1: Binet's formula | D1: Automation: | E1: Step 1 | F1: Step 2 | G1: Step 3
A2: 0 | B2: =_xlfn.LAMBDA(_xlpm.n, _xlfn.LET(_xlpm.phi, (1+SQRT(5))/2, (_xlpm.phi^_xlpm.n - (1-_xlpm.phi)^_xlpm.n)/SQRT(5)))(A2) -> 0 | E2: =_xlfn.LAMBDA(_xlpm.n, _xlfn.LET(_xlpm.phi, (1+SQRT(5))/2, (_xlpm.phi^_xlpm.n - (1-_xlpm.phi)^_xlpm.n)/SQRT(5)))(_xlfn.SEQUENCE(1001,,0)) -> 0 | F2: =_xlfn.LAMBDA(_xlpm.num_terms, _xlfn.LAMBDA(_xlpm.n, _xlfn.LET(_xlpm.phi, (1+SQRT(5))/2, (_xlpm.phi^_xlpm.n - (1-_xlpm.phi)^_xlpm.n)/SQRT(5)))( _xlfn.SEQUENCE(_xlpm.num_terms + 1,,0)))(1000) -> 0 | G2: =GoldenFiboArray(1000) -> 0
A3: 1 | B3: =_xlfn.LAMBDA(_xlpm.n, _xlfn.LET(_xlpm.phi, (1+SQRT(5))/2, (_xlpm.phi^_xlpm.n - (1-_xlpm.phi)^_xlpm.n)/SQRT(5)))(A3) -> 1 | E3: 1 | F3: 1 | G3: 1
A4: 2 | B4: =_xlfn.LAMBDA(_xlpm.n, _xlfn.LET(_xlpm.phi, (1+SQRT(5))/2, (_xlpm.phi^_xlpm.n - (1-_xlpm.phi)^_xlpm.n)/SQRT(5)))(A4) -> 1 | E4: 1 | F4: 1 | G4: 1
A5: 3 | B5: =_xlfn.LAMBDA(_xlpm.n, _xlfn.LET(_xlpm.phi, (1+SQRT(5))/2, (_xlpm.phi^_xlpm.n - (1-_xlpm.phi)^_xlpm.n)/SQRT(5)))(A5) -> 2 | E5: 2 | F5: 2 | G5: 2
A6: 4 | B6: =_xlfn.LAMBDA(_xlpm.n, _xlfn.LET(_xlpm.phi, (1+SQRT(5))/2, (_xlpm.phi^_xlpm.n - (1-_xlpm.phi)^_xlpm.n)/SQRT(5)))(A6) -> 3 | E6: 3 | F6: 3 | G6: 3
A7: 5 | B7: =_xlfn.LAMBDA(_xlpm.n, _xlfn.LET(_xlpm.phi, (1+SQRT(5))/2, (_xlpm.phi^_xlpm.n - (1-_xlpm.phi)^_xlpm.n)/SQRT(5)))(A7) -> 5 | E7: 5 | F7: 5 | G7: 5
A8: 6 | B8: =_xlfn.LAMBDA(_xlpm.n, _xlfn.LET(_xlpm.phi, (1+SQRT(5))/2, (_xlpm.phi^_xlpm.n - (1-_xlpm.phi)^_xlpm.n)/SQRT(5)))(A8) -> 8 | E8: 8 | F8: 8 | G8: 8
A9: 7 | B9: =_xlfn.LAMBDA(_xlpm.n, _xlfn.LET(_xlpm.phi, (1+SQRT(5))/2, (_xlpm.phi^_xlpm.n - (1-_xlpm.phi)^_xlpm.n)/SQRT(5)))(A9) -> 13 | E9: 13 | F9: 13 | G9: 13
A10: 8 | B10: =_xlfn.LAMBDA(_xlpm.n, _xlfn.LET(_xlpm.phi, (1+SQRT(5))/2, (_xlpm.phi^_xlpm.n - (1-_xlpm.phi)^_xlpm.n)/SQRT(5)))(A10) -> 21 | E10: 21 | F10: 21 | G10: 21
A11: 9 | B11: =_xlfn.LAMBDA(_xlpm.n, _xlfn.LET(_xlpm.phi, (1+SQRT(5))/2, (_xlpm.phi^_xlpm.n - (1-_xlpm.phi)^_xlpm.n)/SQRT(5)))(A11) -> 34 | E11: 34 | F11: 34 | G11: 34
A12: 10 | B12: =_xlfn.LAMBDA(_xlpm.n, _xlfn.LET(_xlpm.phi, (1+SQRT(5))/2, (_xlpm.phi^_xlpm.n - (1-_xlpm.phi)^_xlpm.n)/SQRT(5)))(A12) -> 55 | E12: 55 | F12: 55 | G12: 55
A13: 11 | B13: =_xlfn.LAMBDA(_xlpm.n, _xlfn.LET(_xlpm.phi, (1+SQRT(5))/2, (_xlpm.phi^_xlpm.n - (1-_xlpm.phi)^_xlpm.n)/SQRT(5)))(A13) -> 89 | E13: 89 | F13: 89 | G13: 89
A14: 12 | B14: =_xlfn.LAMBDA(_xlpm.n, _xlfn.LET(_xlpm.phi, (1+SQRT(5))/2, (_xlpm.phi^_xlpm.n - (1-_xlpm.phi)^_xlpm.n)/SQRT(5)))(A14) -> 144 | E14: 144 | F14: 144 | G14: 144
A15: 13 | B15: =_xlfn.LAMBDA(_xlpm.n, _xlfn.LET(_xlpm.phi, (1+SQRT(5))/2, (_xlpm.phi^_xlpm.n - (1-_xlpm.phi)^_xlpm.n)/SQRT(5)))(A15) -> 233 | E15: 233 | F15: 233 | G15: 233
A16: 14 | B16: =_xlfn.LAMBDA(_xlpm.n, _xlfn.LET(_xlpm.phi, (1+SQRT(5))/2, (_xlpm.phi^_xlpm.n - (1-_xlpm.phi)^_xlpm.n)/SQRT(5)))(A16) -> 377 | E16: 377 | F16: 377 | G16: 377
A17: 15 | B17: =_xlfn.LAMBDA(_xlpm.n, _xlfn.LET(_xlpm.phi, (1+SQRT(5))/2, (_xlpm.phi^_xlpm.n - (1-_xlpm.phi)^_xlpm.n)/SQRT(5)))(A17) -> 610 | E17: 610 | F17: 610 | G17: 610
A18: 16 | B18: =_xlfn.LAMBDA(_xlpm.n, _xlfn.LET(_xlpm.phi, (1+SQRT(5))/2, (_xlpm.phi^_xlpm.n - (1-_xlpm.phi)^_xlpm.n)/SQRT(5)))(A18) -> 987 | E18: 987 | F18: 987 | G18: 987
A19: 17 | B19: =_xlfn.LAMBDA(_xlpm.n, _xlfn.LET(_xlpm.phi, (1+SQRT(5))/2, (_xlpm.phi^_xlpm.n - (1-_xlpm.phi)^_xlpm.n)/SQRT(5)))(A19) -> 1597 | E19: 1597 | F19: 1597 | G19: 1597
A20: 18 | B20: =_xlfn.LAMBDA(_xlpm.n, _xlfn.LET(_xlpm.phi, (1+SQRT(5))/2, (_xlpm.phi^_xlpm.n - (1-_xlpm.phi)^_xlpm.n)/SQRT(5)))(A20) -> 2584 | E20: 2584 | F20: 2584 | G20: 2584
A21: 19 | B21: =_xlfn.LAMBDA(_xlpm.n, _xlfn.LET(_xlpm.phi, (1+SQRT(5))/2, (_xlpm.phi^_xlpm.n - (1-_xlpm.phi)^_xlpm.n)/SQRT(5)))(A21) -> 4181 | E21: 4181 | F21: 4181 | G21: 4181
A22: 20 | B22: =_xlfn.LAMBDA(_xlpm.n, _xlfn.LET(_xlpm.phi, (1+SQRT(5))/2, (_xlpm.phi^_xlpm.n - (1-_xlpm.phi)^_xlpm.n)/SQRT(5)))(A22) -> 6765 | E22: 6765 | F22: 6765 | G22: 6765
A23: 21 | B23: =_xlfn.LAMBDA(_xlpm.n, _xlfn.LET(_xlpm.phi, (1+SQRT(5))/2, (_xlpm.phi^_xlpm.n - (1-_xlpm.phi)^_xlpm.n)/SQRT(5)))(A23) -> 10946 | E23: 10946 | F23: 10946 | G23: 10946
A24: 22 | B24: =_xlfn.LAMBDA(_xlpm.n, _xlfn.LET(_xlpm.phi, (1+SQRT(5))/2, (_xlpm.phi^_xlpm.n - (1-_xlpm.phi)^_xlpm.n)/SQRT(5)))(A24) -> 17711 | E24: 17711 | F24: 17711 | G24: 17711
A25: 23 | B25: =_xlfn.LAMBDA(_xlpm.n, _xlfn.LET(_xlpm.phi, (1+SQRT(5))/2, (_xlpm.phi^_xlpm.n - (1-_xlpm.phi)^_xlpm.n)/SQRT(5)))(A25) -> 28657 | E25: 28657 | F25: 28657 | G25: 28657
A26: 24 | B26: =_xlfn.LAMBDA(_xlpm.n, _xlfn.LET(_xlpm.phi, (1+SQRT(5))/2, (_xlpm.phi^_xlpm.n - (1-_xlpm.phi)^_xlpm.n)/SQRT(5)))(A26) -> 46368 | E26: 46368 | F26: 46368 | G26: 46368
A27: 25 | B27: =_xlfn.LAMBDA(_xlpm.n, _xlfn.LET(_xlpm.phi, (1+SQRT(5))/2, (_xlpm.phi^_xlpm.n - (1-_xlpm.phi)^_xlpm.n)/SQRT(5)))(A27) -> 75025 | E27: 75025 | F27: 75025 | G27: 75025
A28: 26 | B28: =_xlfn.LAMBDA(_xlpm.n, _xlfn.LET(_xlpm.phi, (1+SQRT(5))/2, (_xlpm.phi^_xlpm.n - (1-_xlpm.phi)^_xlpm.n)/SQRT(5)))(A28) -> 121393 | E28: 121393 | F28: 121393 | G28: 121393
A29: 27 | B29: =_xlfn.LAMBDA(_xlpm.n, _xlfn.LET(_xlpm.phi, (1+SQRT(5))/2, (_xlpm.phi^_xlpm.n - (1-_xlpm.phi)^_xlpm.n)/SQRT(5)))(A29) -> 196418 | E29: 196418 | F29: 196418 | G29: 196418
A30: 28 | B30: =_xlfn.LAMBDA(_xlpm.n, _xlfn.LET(_xlpm.phi, (1+SQRT(5))/2, (_xlpm.phi^_xlpm.n - (1-_xlpm.phi)^_xlpm.n)/SQRT(5)))(A30) -> 317811 | E30: 317811 | F30: 317811 | G30: 317811
A31: 29 | B31: =_xlfn.LAMBDA(_xlpm.n, _xlfn.LET(_xlpm.phi, (1+SQRT(5))/2, (_xlpm.phi^_xlpm.n - (1-_xlpm.phi)^_xlpm.n)/SQRT(5)))(A31) -> 514229 | E31: 514229 | F31: 514229 | G31: 514229
A32: 30 | B32: =_xlfn.LAMBDA(_xlpm.n, _xlfn.LET(_xlpm.phi, (1+SQRT(5))/2, (_xlpm.phi^_xlpm.n - (1-_xlpm.phi)^_xlpm.n)/SQRT(5)))(A32) -> 832040 | E32: 832040 | F32: 832040 | G32: 832040
A33: 31 | B33: =_xlfn.LAMBDA(_xlpm.n, _xlfn.LET(_xlpm.phi, (1+SQRT(5))/2, (_xlpm.phi^_xlpm.n - (1-_xlpm.phi)^_xlpm.n)/SQRT(5)))(A33) -> 1346269 | E33: 1346269 | F33: 1346269 | G33: 1346269
A34: 32 | B34: =_xlfn.LAMBDA(_xlpm.n, _xlfn.LET(_xlpm.phi, (1+SQRT(5))/2, (_xlpm.phi^_xlpm.n - (1-_xlpm.phi)^_xlpm.n)/SQRT(5)))(A34) -> 2178309 | E34: 2178309 | F34: 2178309 | G34: 2178309
A35: 33 | B35: =_xlfn.LAMBDA(_xlpm.n, _xlfn.LET(_xlpm.phi, (1+SQRT(5))/2, (_xlpm.phi^_xlpm.n - (1-_xlpm.phi)^_xlpm.n)/SQRT(5)))(A35) -> 3524578 | E35: 3524578 | F35: 3524578 | G35: 3524578
A36: 34 | B36: =_xlfn.LAMBDA(_xlpm.n, _xlfn.LET(_xlpm.phi, (1+SQRT(5))/2, (_xlpm.phi^_xlpm.n - (1-_xlpm.phi)^_xlpm.n)/SQRT(5)))(A36) -> 5702887 | E36: 5702887 | F36: 5702887 | G36: 5702887
A37: 35 | B37: =_xlfn.LAMBDA(_xlpm.n, _xlfn.LET(_xlpm.phi, (1+SQRT(5))/2, (_xlpm.phi^_xlpm.n - (1-_xlpm.phi)^_xlpm.n)/SQRT(5)))(A37) -> 9227465 | E37: 9227465 | F37: 9227465 | G37: 9227465
A38: 36 | B38: =_xlfn.LAMBDA(_xlpm.n, _xlfn.LET(_xlpm.phi, (1+SQRT(5))/2, (_xlpm.phi^_xlpm.n - (1-_xlpm.phi)^_xlpm.n)/SQRT(5)))(A38) -> 14930352 | E38: 14930352 | F38: 14930352 | G38: 14930352
A39: 37 | B39: =_xlfn.LAMBDA(_xlpm.n, _xlfn.LET(_xlpm.phi, (1+SQRT(5))/2, (_xlpm.phi^_xlpm.n - (1-_xlpm.phi)^_xlpm.n)/SQRT(5)))(A39) -> 24157817 | E39: 24157817 | F39: 24157817 | G39: 24157817
A40: 38 | B40: =_xlfn.LAMBDA(_xlpm.n, _xlfn.LET(_xlpm.phi, (1+SQRT(5))/2, (_xlpm.phi^_xlpm.n - (1-_xlpm.phi)^_xlpm.n)/SQRT(5)))(A40) -> 39088169 | E40: 39088169 | F40: 39088169 | G40: 39088169
A41: 39 | B41: =_xlfn.LAMBDA(_xlpm.n, _xlfn.LET(_xlpm.phi, (1+SQRT(5))/2, (_xlpm.phi^_xlpm.n - (1-_xlpm.phi)^_xlpm.n)/SQRT(5)))(A41) -> 63245986 | E41: 63245986 | F41: 63245986 | G41: 63245986
A42: 40 | B42: =_xlfn.LAMBDA(_xlpm.n, _xlfn.LET(_xlpm.phi, (1+SQRT(5))/2, (_xlpm.phi^_xlpm.n - (1-_xlpm.phi)^_xlpm.n)/SQRT(5)))(A42) -> 102334155 | E42: 102334155 | F42: 102334155 | G42: 102334155
A43: 41 | B43: =_xlfn.LAMBDA(_xlpm.n, _xlfn.LET(_xlpm.phi, (1+SQRT(5))/2, (_xlpm.phi^_xlpm.n - (1-_xlpm.phi)^_xlpm.n)/SQRT(5)))(A43) -> 165580141 | E43: 165580141 | F43: 165580141 | G43: 165580141
A44: 42 | B44: =_xlfn.LAMBDA(_xlpm.n, _xlfn.LET(_xlpm.phi, (1+SQRT(5))/2, (_xlpm.phi^_xlpm.n - (1-_xlpm.phi)^_xlpm.n)/SQRT(5)))(A44) -> 267914296 | E44: 267914296 | F44: 267914296 | G44: 267914296
A45: 43 | B45: =_xlfn.LAMBDA(_xlpm.n, _xlfn.LET(_xlpm.phi, (1+SQRT(5))/2, (_xlpm.phi^_xlpm.n - (1-_xlpm.phi)^_xlpm.n)/SQRT(5)))(A45) -> 433494437 | E45: 433494437 | F45: 433494437 | G45: 433494437
A46: 44 | B46: =_xlfn.LAMBDA(_xlpm.n, _xlfn.LET(_xlpm.phi, (1+SQRT(5))/2, (_xlpm.phi^_xlpm.n - (1-_xlpm.phi)^_xlpm.n)/SQRT(5)))(A46) -> 701408733 | E46: 701408733 | F46: 701408733 | G46: 701408733
A47: 45 | B47: =_xlfn.LAMBDA(_xlpm.n, _xlfn.LET(_xlpm.phi, (1+SQRT(5))/2, (_xlpm.phi^_xlpm.n - (1-_xlpm.phi)^_xlpm.n)/SQRT(5)))(A47) -> 1134903170 | E47: 1134903170 | F47: 1134903170 | G47: 1134903170
A48: 46 | B48: =_xlfn.LAMBDA(_xlpm.n, _xlfn.LET(_xlpm.phi, (1+SQRT(5))/2, (_xlpm.phi^_xlpm.n - (1-_xlpm.phi)^_xlpm.n)/SQRT(5)))(A48) -> 1836311903 | E48: 1836311903 | F48: 1836311903 | G48: 1836311903
A49: 47 | B49: =_xlfn.LAMBDA(_xlpm.n, _xlfn.LET(_xlpm.phi, (1+SQRT(5))/2, (_xlpm.phi^_xlpm.n - (1-_xlpm.phi)^_xlpm.n)/SQRT(5)))(A49) -> 2971215073 | E49: 2971215073 | F49: 2971215073 | G49: 2971215073
A50: 48 | B50: =_xlfn.LAMBDA(_xlpm.n, _xlfn.LET(_xlpm.phi, (1+SQRT(5))/2, (_xlpm.phi^_xlpm.n - (1-_xlpm.phi)^_xlpm.n)/SQRT(5)))(A50) -> 4807526976 | E50: 4807526976 | F50: 4807526976 | G50: 4807526976
A51: 49 | B51: =_xlfn.LAMBDA(_xlpm.n, _xlfn.LET(_xlpm.phi, (1+SQRT(5))/2, (_xlpm.phi^_xlpm.n - (1-_xlpm.phi)^_xlpm.n)/SQRT(5)))(A51) -> 7778742049 | E51: 7778742049 | F51: 7778742049 | G51: 7778742049
A52: 50 | B52: =_xlfn.LAMBDA(_xlpm.n, _xlfn.LET(_xlpm.phi, (1+SQRT(5))/2, (_xlpm.phi^_xlpm.n - (1-_xlpm.phi)^_xlpm.n)/SQRT(5)))(A52) -> 1.258626902e+10 | E52: 1.258626902e+10 | F52: 1.258626902e+10 | G52: 1.258626902e+10
A53: 51 | B53: =_xlfn.LAMBDA(_xlpm.n, _xlfn.LET(_xlpm.phi, (1+SQRT(5))/2, (_xlpm.phi^_xlpm.n - (1-_xlpm.phi)^_xlpm.n)/SQRT(5)))(A53) -> 20365011074 | E53: 20365011074 | F53: 20365011074 | G53: 20365011074
A54: 52 | B54: =_xlfn.LAMBDA(_xlpm.n, _xlfn.LET(_xlpm.phi, (1+SQRT(5))/2, (_xlpm.phi^_xlpm.n - (1-_xlpm.phi)^_xlpm.n)/SQRT(5)))(A54) -> 3.29512801e+10 | E54: 3.29512801e+10 | F54: 3.29512801e+10 | G54: 3.29512801e+10
A55: 53 | B55: =_xlfn.LAMBDA(_xlpm.n, _xlfn.LET(_xlpm.phi, (1+SQRT(5))/2, (_xlpm.phi^_xlpm.n - (1-_xlpm.phi)^_xlpm.n)/SQRT(5)))(A55) -> 5.331629117e+10 | E55: 5.331629117e+10 | F55: 5.331629117e+10 | G55: 5.331629117e+10
A56: 54 | B56: =_xlfn.LAMBDA(_xlpm.n, _xlfn.LET(_xlpm.phi, (1+SQRT(5))/2, (_xlpm.phi^_xlpm.n - (1-_xlpm.phi)^_xlpm.n)/SQRT(5)))(A56) -> 8.626757127e+10 | E56: 8.626757127e+10 | F56: 8.626757127e+10 | G56: 8.626757127e+10
A57: 55 | B57: =_xlfn.LAMBDA(_xlpm.n, _xlfn.LET(_xlpm.phi, (1+SQRT(5))/2, (_xlpm.phi^_xlpm.n - (1-_xlpm.phi)^_xlpm.n)/SQRT(5)))(A57) -> 1.395838624e+11 | E57: 1.395838624e+11 | F57: 1.395838624e+11 | G57: 1.395838624e+11
A58: 56 | B58: =_xlfn.LAMBDA(_xlpm.n, _xlfn.LET(_xlpm.phi, (1+SQRT(5))/2, (_xlpm.phi^_xlpm.n - (1-_xlpm.phi)^_xlpm.n)/SQRT(5)))(A58) -> 2.258514337e+11 | E58: 2.258514337e+11 | F58: 2.258514337e+11 | G58: 2.258514337e+11
A59: 57 | B59: =_xlfn.LAMBDA(_xlpm.n, _xlfn.LET(_xlpm.phi, (1+SQRT(5))/2, (_xlpm.phi^_xlpm.n - (1-_xlpm.phi)^_xlpm.n)/SQRT(5)))(A59) -> 3.654352962e+11 | E59: 3.654352962e+11 | F59: 3.654352962e+11 | G59: 3.654352962e+11
A60: 58 | B60: =_xlfn.LAMBDA(_xlpm.n, _xlfn.LET(_xlpm.phi, (1+SQRT(5))/2, (_xlpm.phi^_xlpm.n - (1-_xlpm.phi)^_xlpm.n)/SQRT(5)))(A60) -> 5.912867299e+11 | E60: 5.912867299e+11 | F60: 5.912867299e+11 | G60: 5.912867299e+11
A61: 59 | B61: =_xlfn.LAMBDA(_xlpm.n, _xlfn.LET(_xlpm.phi, (1+SQRT(5))/2, (_xlpm.phi^_xlpm.n - (1-_xlpm.phi)^_xlpm.n)/SQRT(5)))(A61) -> 9.56722026e+11 | E61: 9.56722026e+11 | F61: 9.56722026e+11 | G61: 9.56722026e+11
A62: 60 | B62: =_xlfn.LAMBDA(_xlpm.n, _xlfn.LET(_xlpm.phi, (1+SQRT(5))/2, (_xlpm.phi^_xlpm.n - (1-_xlpm.phi)^_xlpm.n)/SQRT(5)))(A62) -> 1.548008756e+12 | E62: 1.548008756e+12 | F62: 1.548008756e+12 | G62: 1.548008756e+12
A63: 61 | B63: =_xlfn.LAMBDA(_xlpm.n, _xlfn.LET(_xlpm.phi, (1+SQRT(5))/2, (_xlpm.phi^_xlpm.n - (1-_xlpm.phi)^_xlpm.n)/SQRT(5)))(A63) -> 2.504730782e+12 | E63: 2.504730782e+12 | F63: 2.504730782e+12 | G63: 2.504730782e+12
A64: 62 | B64: =_xlfn.LAMBDA(_xlpm.n, _xlfn.LET(_xlpm.phi, (1+SQRT(5))/2, (_xlpm.phi^_xlpm.n - (1-_xlpm.phi)^_xlpm.n)/SQRT(5)))(A64) -> 4.052739538e+12 | E64: 4.052739538e+12 | F64: 4.052739538e+12 | G64: 4.052739538e+12
A65: 63 | B65: =_xlfn.LAMBDA(_xlpm.n, _xlfn.LET(_xlpm.phi, (1+SQRT(5))/2, (_xlpm.phi^_xlpm.n - (1-_xlpm.phi)^_xlpm.n)/SQRT(5)))(A65) -> 6.55747032e+12 | E65: 6.55747032e+12 | F65: 6.55747032e+12 | G65: 6.55747032e+12
A66: 64 | B66: =_xlfn.LAMBDA(_xlpm.n, _xlfn.LET(_xlpm.phi, (1+SQRT(5))/2, (_xlpm.phi^_xlpm.n - (1-_xlpm.phi)^_xlpm.n)/SQRT(5)))(A66) -> 1.061020986e+13 | E66: 1.061020986e+13 | F66: 1.061020986e+13 | G66: 1.061020986e+13
A67: 65 | B67: =_xlfn.LAMBDA(_xlpm.n, _xlfn.LET(_xlpm.phi, (1+SQRT(5))/2, (_xlpm.phi^_xlpm.n - (1-_xlpm.phi)^_xlpm.n)/SQRT(5)))(A67) -> 1.716768018e+13 | E67: 1.716768018e+13 | F67: 1.716768018e+13 | G67: 1.716768018e+13
A68: 66 | B68: =_xlfn.LAMBDA(_xlpm.n, _xlfn.LET(_xlpm.phi, (1+SQRT(5))/2, (_xlpm.phi^_xlpm.n - (1-_xlpm.phi)^_xlpm.n)/SQRT(5)))(A68) -> 2.777789004e+13 | E68: 2.777789004e+13 | F68: 2.777789004e+13 | G68: 2.777789004e+13
A69: 67 | B69: =_xlfn.LAMBDA(_xlpm.n, _xlfn.LET(_xlpm.phi, (1+SQRT(5))/2, (_xlpm.phi^_xlpm.n - (1-_xlpm.phi)^_xlpm.n)/SQRT(5)))(A69) -> 4.494557021e+13 | E69: 4.494557021e+13 | F69: 4.494557021e+13 | G69: 4.494557021e+13
A70: 68 | B70: =_xlfn.LAMBDA(_xlpm.n, _xlfn.LET(_xlpm.phi, (1+SQRT(5))/2, (_xlpm.phi^_xlpm.n - (1-_xlpm.phi)^_xlpm.n)/SQRT(5)))(A70) -> 7.272346025e+13 | E70: 7.272346025e+13 | F70: 7.272346025e+13 | G70: 7.272346025e+13
A71: 69 | B71: =_xlfn.LAMBDA(_xlpm.n, _xlfn.LET(_xlpm.phi, (1+SQRT(5))/2, (_xlpm.phi^_xlpm.n - (1-_xlpm.phi)^_xlpm.n)/SQRT(5)))(A71) -> 1.176690305e+14 | E71: 1.176690305e+14 | F71: 1.176690305e+14 | G71: 1.176690305e+14
A72: 70 | B72: =_xlfn.LAMBDA(_xlpm.n, _xlfn.LET(_xlpm.phi, (1+SQRT(5))/2, (_xlpm.phi^_xlpm.n - (1-_xlpm.phi)^_xlpm.n)/SQRT(5)))(A72) -> 1.903924907e+14 | E72: 1.903924907e+14 | F72: 1.903924907e+14 | G72: 1.903924907e+14
A73: 71 | B73: =_xlfn.LAMBDA(_xlpm.n, _xlfn.LET(_xlpm.phi, (1+SQRT(5))/2, (_xlpm.phi^_xlpm.n - (1-_xlpm.phi)^_xlpm.n)/SQRT(5)))(A73) -> 308061521170129 | E73: 308061521170129 | F73: 308061521170129 | G73: 308061521170129
A74: 72 | B74: =_xlfn.LAMBDA(_xlpm.n, _xlfn.LET(_xlpm.phi, (1+SQRT(5))/2, (_xlpm.phi^_xlpm.n - (1-_xlpm.phi)^_xlpm.n)/SQRT(5)))(A74) -> 4.984540119e+14 | E74: 4.984540119e+14 | F74: 4.984540119e+14 | G74: 4.984540119e+14
A75: 73 | B75: =_xlfn.LAMBDA(_xlpm.n, _xlfn.LET(_xlpm.phi, (1+SQRT(5))/2, (_xlpm.phi^_xlpm.n - (1-_xlpm.phi)^_xlpm.n)/SQRT(5)))(A75) -> 8.06515533e+14 | E75: 8.06515533e+14 | F75: 8.06515533e+14 | G75: 8.06515533e+14
A76: 74 | B76: =_xlfn.LAMBDA(_xlpm.n, _xlfn.LET(_xlpm.phi, (1+SQRT(5))/2, (_xlpm.phi^_xlpm.n - (1-_xlpm.phi)^_xlpm.n)/SQRT(5)))(A76) -> 1.304969545e+15 | E76: 1.304969545e+15 | F76: 1.304969545e+15 | G76: 1.304969545e+15
A77: 75 | B77: =_xlfn.LAMBDA(_xlpm.n, _xlfn.LET(_xlpm.phi, (1+SQRT(5))/2, (_xlpm.phi^_xlpm.n - (1-_xlpm.phi)^_xlpm.n)/SQRT(5)))(A77) -> 2.111485078e+15 | E77: 2.111485078e+15 | F77: 2.111485078e+15 | G77: 2.111485078e+15
A78: 76 | B78: =_xlfn.LAMBDA(_xlpm.n, _xlfn.LET(_xlpm.phi, (1+SQRT(5))/2, (_xlpm.phi^_xlpm.n - (1-_xlpm.phi)^_xlpm.n)/SQRT(5)))(A78) -> 3416454622906706 | E78: 3416454622906706 | F78: 3416454622906706 | G78: 3416454622906706
A79: 77 | B79: =_xlfn.LAMBDA(_xlpm.n, _xlfn.LET(_xlpm.phi, (1+SQRT(5))/2, (_xlpm.phi^_xlpm.n - (1-_xlpm.phi)^_xlpm.n)/SQRT(5)))(A79) -> 5527939700884755 | E79: 5527939700884755 | F79: 5527939700884755 | G79: 5527939700884755
A80: 78 | B80: =_xlfn.LAMBDA(_xlpm.n, _xlfn.LET(_xlpm.phi, (1+SQRT(5))/2, (_xlpm.phi^_xlpm.n - (1-_xlpm.phi)^_xlpm.n)/SQRT(5)))(A80) -> 8944394323791463 | E80: 8944394323791463 | F80: 8944394323791463 | G80: 8944394323791463
A81: 79 | B81: =_xlfn.LAMBDA(_xlpm.n, _xlfn.LET(_xlpm.phi, (1+SQRT(5))/2, (_xlpm.phi^_xlpm.n - (1-_xlpm.phi)^_xlpm.n)/SQRT(5)))(A81) -> 1.447233402e+16 | E81: 1.447233402e+16 | F81: 1.447233402e+16 | G81: 1.447233402e+16
A82: 80 | B82: =_xlfn.LAMBDA(_xlpm.n, _xlfn.LET(_xlpm.phi, (1+SQRT(5))/2, (_xlpm.phi^_xlpm.n - (1-_xlpm.phi)^_xlpm.n)/SQRT(5)))(A82) -> 2.341672835e+16 | E82: 2.341672835e+16 | F82: 2.341672835e+16 | G82: 2.341672835e+16
A83: 81 | B83: =_xlfn.LAMBDA(_xlpm.n, _xlfn.LET(_xlpm.phi, (1+SQRT(5))/2, (_xlpm.phi^_xlpm.n - (1-_xlpm.phi)^_xlpm.n)/SQRT(5)))(A83) -> 3.788906237e+16 | E83: 3.788906237e+16 | F83: 3.788906237e+16 | G83: 3.788906237e+16
A84: 82 | B84: =_xlfn.LAMBDA(_xlpm.n, _xlfn.LET(_xlpm.phi, (1+SQRT(5))/2, (_xlpm.phi^_xlpm.n - (1-_xlpm.phi)^_xlpm.n)/SQRT(5)))(A84) -> 6.130579072e+16 | E84: 6.130579072e+16 | F84: 6.130579072e+16 | G84: 6.130579072e+16
A85: 83 | B85: =_xlfn.LAMBDA(_xlpm.n, _xlfn.LET(_xlpm.phi, (1+SQRT(5))/2, (_xlpm.phi^_xlpm.n - (1-_xlpm.phi)^_xlpm.n)/SQRT(5)))(A85) -> 9.919485309e+16 | E85: 9.919485309e+16 | F85: 9.919485309e+16 | G85: 9.919485309e+16
A86: 84 | B86: =_xlfn.LAMBDA(_xlpm.n, _xlfn.LET(_xlpm.phi, (1+SQRT(5))/2, (_xlpm.phi^_xlpm.n - (1-_xlpm.phi)^_xlpm.n)/SQRT(5)))(A86) -> 1.605006438e+17 | E86: 1.605006438e+17 | F86: 1.605006438e+17 | G86: 1.605006438e+17
A87: 85 | B87: =_xlfn.LAMBDA(_xlpm.n, _xlfn.LET(_xlpm.phi, (1+SQRT(5))/2, (_xlpm.phi^_xlpm.n - (1-_xlpm.phi)^_xlpm.n)/SQRT(5)))(A87) -> 2.596954969e+17 | E87: 2.596954969e+17 | F87: 2.596954969e+17 | G87: 2.596954969e+17
A88: 86 | B88: =_xlfn.LAMBDA(_xlpm.n, _xlfn.LET(_xlpm.phi, (1+SQRT(5))/2, (_xlpm.phi^_xlpm.n - (1-_xlpm.phi)^_xlpm.n)/SQRT(5)))(A88) -> 4.201961407e+17 | E88: 4.201961407e+17 | F88: 4.201961407e+17 | G88: 4.201961407e+17
A89: 87 | B89: =_xlfn.LAMBDA(_xlpm.n, _xlfn.LET(_xlpm.phi, (1+SQRT(5))/2, (_xlpm.phi^_xlpm.n - (1-_xlpm.phi)^_xlpm.n)/SQRT(5)))(A89) -> 6.798916376e+17 | E89: 6.798916376e+17 | F89: 6.798916376e+17 | G89: 6.798916376e+17
A90: 88 | B90: =_xlfn.LAMBDA(_xlpm.n, _xlfn.LET(_xlpm.phi, (1+SQRT(5))/2, (_xlpm.phi^_xlpm.n - (1-_xlpm.phi)^_xlpm.n)/SQRT(5)))(A90) -> 1.100087778e+18 | E90: 1.100087778e+18 | F90: 1.100087778e+18 | G90: 1.100087778e+18
A91: 89 | B91: =_xlfn.LAMBDA(_xlpm.n, _xlfn.LET(_xlpm.phi, (1+SQRT(5))/2, (_xlpm.phi^_xlpm.n - (1-_xlpm.phi)^_xlpm.n)/SQRT(5)))(A91) -> 1.779979416e+18 | E91: 1.779979416e+18 | F91: 1.779979416e+18 | G91: 1.779979416e+18
A92: 90 | B92: =_xlfn.LAMBDA(_xlpm.n, _xlfn.LET(_xlpm.phi, (1+SQRT(5))/2, (_xlpm.phi^_xlpm.n - (1-_xlpm.phi)^_xlpm.n)/SQRT(5)))(A92) -> 2.880067194e+18 | E92: 2.880067194e+18 | F92: 2.880067194e+18 | G92: 2.880067194e+18
A93: 91 | B93: =_xlfn.LAMBDA(_xlpm.n, _xlfn.LET(_xlpm.phi, (1+SQRT(5))/2, (_xlpm.phi^_xlpm.n - (1-_xlpm.phi)^_xlpm.n)/SQRT(5)))(A93) -> 4.66004661e+18 | E93: 4.66004661e+18 | F93: 4.66004661e+18 | G93: 4.66004661e+18
A94: 92 | B94: =_xlfn.LAMBDA(_xlpm.n, _xlfn.LET(_xlpm.phi, (1+SQRT(5))/2, (_xlpm.phi^_xlpm.n - (1-_xlpm.phi)^_xlpm.n)/SQRT(5)))(A94) -> 7.540113805e+18 | E94: 7.540113805e+18 | F94: 7.540113805e+18 | G94: 7.540113805e+18
A95: 93 | B95: =_xlfn.LAMBDA(_xlpm.n, _xlfn.LET(_xlpm.phi, (1+SQRT(5))/2, (_xlpm.phi^_xlpm.n - (1-_xlpm.phi)^_xlpm.n)/SQRT(5)))(A95) -> 1.220016042e+19 | E95: 1.220016042e+19 | F95: 1.220016042e+19 | G95: 1.220016042e+19
A96: 94 | B96: =_xlfn.LAMBDA(_xlpm.n, _xlfn.LET(_xlpm.phi, (1+SQRT(5))/2, (_xlpm.phi^_xlpm.n - (1-_xlpm.phi)^_xlpm.n)/SQRT(5)))(A96) -> 1.974027422e+19 | E96: 1.974027422e+19 | F96: 1.974027422e+19 | G96: 1.974027422e+19
A97: 95 | B97: =_xlfn.LAMBDA(_xlpm.n, _xlfn.LET(_xlpm.phi, (1+SQRT(5))/2, (_xlpm.phi^_xlpm.n - (1-_xlpm.phi)^_xlpm.n)/SQRT(5)))(A97) -> 3.194043463e+19 | E97: 3.194043463e+19 | F97: 3.194043463e+19 | G97: 3.194043463e+19
A98: 96 | B98: =_xlfn.LAMBDA(_xlpm.n, _xlfn.LET(_xlpm.phi, (1+SQRT(5))/2, (_xlpm.phi^_xlpm.n - (1-_xlpm.phi)^_xlpm.n)/SQRT(5)))(A98) -> 5.168070885e+19 | E98: 5.168070885e+19 | F98: 5.168070885e+19 | G98: 5.168070885e+19
A99: 97 | B99: =_xlfn.LAMBDA(_xlpm.n, _xlfn.LET(_xlpm.phi, (1+SQRT(5))/2, (_xlpm.phi^_xlpm.n - (1-_xlpm.phi)^_xlpm.n)/SQRT(5)))(A99) -> 8.362114349e+19 | E99: 8.362114349e+19 | F99: 8.362114349e+19 | G99: 8.362114349e+19
A100: 98 | B100: =_xlfn.LAMBDA(_xlpm.n, _xlfn.LET(_xlpm.phi, (1+SQRT(5))/2, (_xlpm.phi^_xlpm.n - (1-_xlpm.phi)^_xlpm.n)/SQRT(5)))(A100) -> 1.353018523e+20 | E100: 1.353018523e+20 | F100: 1.353018523e+20 | G100: 1.353018523e+20
A101: 99 | B101: =_xlfn.LAMBDA(_xlpm.n, _xlfn.LET(_xlpm.phi, (1+SQRT(5))/2, (_xlpm.phi^_xlpm.n - (1-_xlpm.phi)^_xlpm.n)/SQRT(5)))(A101) -> 2.189229958e+20 | E101: 2.189229958e+20 | F101: 2.189229958e+20 | G101: 2.189229958e+20
A102: 100 | B102: =_xlfn.LAMBDA(_xlpm.n, _xlfn.LET(_xlpm.phi, (1+SQRT(5))/2, (_xlpm.phi^_xlpm.n - (1-_xlpm.phi)^_xlpm.n)/SQRT(5)))(A102) -> 3.542248482e+20 | E102: 3.542248482e+20 | F102: 3.542248482e+20 | G102: 3.542248482e+20
A103: 101 | B103: =_xlfn.LAMBDA(_xlpm.n, _xlfn.LET(_xlpm.phi, (1+SQRT(5))/2, (_xlpm.phi^_xlpm.n - (1-_xlpm.phi)^_xlpm.n)/SQRT(5)))(A103) -> 5.73147844e+20 | E103: 5.73147844e+20 | F103: 5.73147844e+20 | G103: 5.73147844e+20
A104: 102 | B104: =_xlfn.LAMBDA(_xlpm.n, _xlfn.LET(_xlpm.phi, (1+SQRT(5))/2, (_xlpm.phi^_xlpm.n - (1-_xlpm.phi)^_xlpm.n)/SQRT(5)))(A104) -> 9.273726922e+20 | E104: 9.273726922e+20 | F104: 9.273726922e+20 | G104: 9.273726922e+20
A105: 103 | B105: =_xlfn.LAMBDA(_xlpm.n, _xlfn.LET(_xlpm.phi, (1+SQRT(5))/2, (_xlpm.phi^_xlpm.n - (1-_xlpm.phi)^_xlpm.n)/SQRT(5)))(A105) -> 1.500520536e+21 | E105: 1.500520536e+21 | F105: 1.500520536e+21 | G105: 1.500520536e+21
A106: 104 | B106: =_xlfn.LAMBDA(_xlpm.n, _xlfn.LET(_xlpm.phi, (1+SQRT(5))/2, (_xlpm.phi^_xlpm.n - (1-_xlpm.phi)^_xlpm.n)/SQRT(5)))(A106) -> 2.427893228e+21 | E106: 2.427893228e+21 | F106: 2.427893228e+21 | G106: 2.427893228e+21
A107: 105 | B107: =_xlfn.LAMBDA(_xlpm.n, _xlfn.LET(_xlpm.phi, (1+SQRT(5))/2, (_xlpm.phi^_xlpm.n - (1-_xlpm.phi)^_xlpm.n)/SQRT(5)))(A107) -> 3.928413765e+21 | E107: 3.928413765e+21 | F107: 3.928413765e+21 | G107: 3.928413765e+21
A108: 106 | B108: =_xlfn.LAMBDA(_xlpm.n, _xlfn.LET(_xlpm.phi, (1+SQRT(5))/2, (_xlpm.phi^_xlpm.n - (1-_xlpm.phi)^_xlpm.n)/SQRT(5)))(A108) -> 6.356306993e+21 | E108: 6.356306993e+21 | F108: 6.356306993e+21 | G108: 6.356306993e+21
A109: 107 | B109: =_xlfn.LAMBDA(_xlpm.n, _xlfn.LET(_xlpm.phi, (1+SQRT(5))/2, (_xlpm.phi^_xlpm.n - (1-_xlpm.phi)^_xlpm.n)/SQRT(5)))(A109) -> 1.028472076e+22 | E109: 1.028472076e+22 | F109: 1.028472076e+22 | G109: 1.028472076e+22
A110: 108 | B110: =_xlfn.LAMBDA(_xlpm.n, _xlfn.LET(_xlpm.phi, (1+SQRT(5))/2, (_xlpm.phi^_xlpm.n - (1-_xlpm.phi)^_xlpm.n)/SQRT(5)))(A110) -> 1.664102775e+22 | E110: 1.664102775e+22 | F110: 1.664102775e+22 | G110: 1.664102775e+22
A111: 109 | B111: =_xlfn.LAMBDA(_xlpm.n, _xlfn.LET(_xlpm.phi, (1+SQRT(5))/2, (_xlpm.phi^_xlpm.n - (1-_xlpm.phi)^_xlpm.n)/SQRT(5)))(A111) -> 2.692574851e+22 | E111: 2.692574851e+22 | F111: 2.692574851e+22 | G111: 2.692574851e+22
A112: 110 | B112: =_xlfn.LAMBDA(_xlpm.n, _xlfn.LET(_xlpm.phi, (1+SQRT(5))/2, (_xlpm.phi^_xlpm.n - (1-_xlpm.phi)^_xlpm.n)/SQRT(5)))(A112) -> 4.356677626e+22 | E112: 4.356677626e+22 | F112: 4.356677626e+22 | G112: 4.356677626e+22
A113: 111 | B113: =_xlfn.LAMBDA(_xlpm.n, _xlfn.LET(_xlpm.phi, (1+SQRT(5))/2, (_xlpm.phi^_xlpm.n - (1-_xlpm.phi)^_xlpm.n)/SQRT(5)))(A113) -> 7.049252477e+22 | E113: 7.049252477e+22 | F113: 7.049252477e+22 | G113: 7.049252477e+22
A114: 112 | B114: =_xlfn.LAMBDA(_xlpm.n, _xlfn.LET(_xlpm.phi, (1+SQRT(5))/2, (_xlpm.phi^_xlpm.n - (1-_xlpm.phi)^_xlpm.n)/SQRT(5)))(A114) -> 1.14059301e+23 | E114: 1.14059301e+23 | F114: 1.14059301e+23 | G114: 1.14059301e+23
A115: 113 | B115: =_xlfn.LAMBDA(_xlpm.n, _xlfn.LET(_xlpm.phi, (1+SQRT(5))/2, (_xlpm.phi^_xlpm.n - (1-_xlpm.phi)^_xlpm.n)/SQRT(5)))(A115) -> 1.845518258e+23 | E115: 1.845518258e+23 | F115: 1.845518258e+23 | G115: 1.845518258e+23
A116: 114 | B116: =_xlfn.LAMBDA(_xlpm.n, _xlfn.LET(_xlpm.phi, (1+SQRT(5))/2, (_xlpm.phi^_xlpm.n - (1-_xlpm.phi)^_xlpm.n)/SQRT(5)))(A116) -> 2.986111268e+23 | E116: 2.986111268e+23 | F116: 2.986111268e+23 | G116: 2.986111268e+23
A117: 115 | B117: =_xlfn.LAMBDA(_xlpm.n, _xlfn.LET(_xlpm.phi, (1+SQRT(5))/2, (_xlpm.phi^_xlpm.n - (1-_xlpm.phi)^_xlpm.n)/SQRT(5)))(A117) -> 4.831629526e+23 | E117: 4.831629526e+23 | F117: 4.831629526e+23 | G117: 4.831629526e+23
A118: 116 | B118: =_xlfn.LAMBDA(_xlpm.n, _xlfn.LET(_xlpm.phi, (1+SQRT(5))/2, (_xlpm.phi^_xlpm.n - (1-_xlpm.phi)^_xlpm.n)/SQRT(5)))(A118) -> 7.817740794e+23 | E118: 7.817740794e+23 | F118: 7.817740794e+23 | G118: 7.817740794e+23
A119: 117 | B119: =_xlfn.LAMBDA(_xlpm.n, _xlfn.LET(_xlpm.phi, (1+SQRT(5))/2, (_xlpm.phi^_xlpm.n - (1-_xlpm.phi)^_xlpm.n)/SQRT(5)))(A119) -> 1.264937032e+24 | E119: 1.264937032e+24 | F119: 1.264937032e+24 | G119: 1.264937032e+24
A120: 118 | B120: =_xlfn.LAMBDA(_xlpm.n, _xlfn.LET(_xlpm.phi, (1+SQRT(5))/2, (_xlpm.phi^_xlpm.n - (1-_xlpm.phi)^_xlpm.n)/SQRT(5)))(A120) -> 2.046711111e+24 | E120: 2.046711111e+24 | F120: 2.046711111e+24 | G120: 2.046711111e+24
A121: 119 | B121: =_xlfn.LAMBDA(_xlpm.n, _xlfn.LET(_xlpm.phi, (1+SQRT(5))/2, (_xlpm.phi^_xlpm.n - (1-_xlpm.phi)^_xlpm.n)/SQRT(5)))(A121) -> 3.311648144e+24 | E121: 3.311648144e+24 | F121: 3.311648144e+24 | G121: 3.311648144e+24
A122: 120 | B122: =_xlfn.LAMBDA(_xlpm.n, _xlfn.LET(_xlpm.phi, (1+SQRT(5))/2, (_xlpm.phi^_xlpm.n - (1-_xlpm.phi)^_xlpm.n)/SQRT(5)))(A122) -> 5.358359255e+24 | E122: 5.358359255e+24 | F122: 5.358359255e+24 | G122: 5.358359255e+24
A123: 121 | B123: =_xlfn.LAMBDA(_xlpm.n, _xlfn.LET(_xlpm.phi, (1+SQRT(5))/2, (_xlpm.phi^_xlpm.n - (1-_xlpm.phi)^_xlpm.n)/SQRT(5)))(A123) -> 8.670007399e+24 | E123: 8.670007399e+24 | F123: 8.670007399e+24 | G123: 8.670007399e+24
A124: 122 | B124: =_xlfn.LAMBDA(_xlpm.n, _xlfn.LET(_xlpm.phi, (1+SQRT(5))/2, (_xlpm.phi^_xlpm.n - (1-_xlpm.phi)^_xlpm.n)/SQRT(5)))(A124) -> 1.402836665e+25 | E124: 1.402836665e+25 | F124: 1.402836665e+25 | G124: 1.402836665e+25
A125: 123 | B125: =_xlfn.LAMBDA(_xlpm.n, _xlfn.LET(_xlpm.phi, (1+SQRT(5))/2, (_xlpm.phi^_xlpm.n - (1-_xlpm.phi)^_xlpm.n)/SQRT(5)))(A125) -> 2.269837405e+25 | E125: 2.269837405e+25 | F125: 2.269837405e+25 | G125: 2.269837405e+25
A126: 124 | B126: =_xlfn.LAMBDA(_xlpm.n, _xlfn.LET(_xlpm.phi, (1+SQRT(5))/2, (_xlpm.phi^_xlpm.n - (1-_xlpm.phi)^_xlpm.n)/SQRT(5)))(A126) -> 3.672674071e+25 | E126: 3.672674071e+25 | F126: 3.672674071e+25 | G126: 3.672674071e+25
A127: 125 | B127: =_xlfn.LAMBDA(_xlpm.n, _xlfn.LET(_xlpm.phi, (1+SQRT(5))/2, (_xlpm.phi^_xlpm.n - (1-_xlpm.phi)^_xlpm.n)/SQRT(5)))(A127) -> 5.942511476e+25 | E127: 5.942511476e+25 | F127: 5.942511476e+25 | G127: 5.942511476e+25
A128: 126 | B128: =_xlfn.LAMBDA(_xlpm.n, _xlfn.LET(_xlpm.phi, (1+SQRT(5))/2, (_xlpm.phi^_xlpm.n - (1-_xlpm.phi)^_xlpm.n)/SQRT(5)))(A128) -> 9.615185546e+25 | E128: 9.615185546e+25 | F128: 9.615185546e+25 | G128: 9.615185546e+25
A129: 127 | B129: =_xlfn.LAMBDA(_xlpm.n, _xlfn.LET(_xlpm.phi, (1+SQRT(5))/2, (_xlpm.phi^_xlpm.n - (1-_xlpm.phi)^_xlpm.n)/SQRT(5)))(A129) -> 1.555769702e+26 | E129: 1.555769702e+26 | F129: 1.555769702e+26 | G129: 1.555769702e+26
A130: 128 | B130: =_xlfn.LAMBDA(_xlpm.n, _xlfn.LET(_xlpm.phi, (1+SQRT(5))/2, (_xlpm.phi^_xlpm.n - (1-_xlpm.phi)^_xlpm.n)/SQRT(5)))(A130) -> 2.517288257e+26 | E130: 2.517288257e+26 | F130: 2.517288257e+26 | G130: 2.517288257e+26
A131: 129 | B131: =_xlfn.LAMBDA(_xlpm.n, _xlfn.LET(_xlpm.phi, (1+SQRT(5))/2, (_xlpm.phi^_xlpm.n - (1-_xlpm.phi)^_xlpm.n)/SQRT(5)))(A131) -> 4.073057959e+26 | E131: 4.073057959e+26 | F131: 4.073057959e+26 | G131: 4.073057959e+26
A132: 130 | B132: =_xlfn.LAMBDA(_xlpm.n, _xlfn.LET(_xlpm.phi, (1+SQRT(5))/2, (_xlpm.phi^_xlpm.n - (1-_xlpm.phi)^_xlpm.n)/SQRT(5)))(A132) -> 6.590346216e+26 | E132: 6.590346216e+26 | F132: 6.590346216e+26 | G132: 6.590346216e+26
A133: 131 | B133: =_xlfn.LAMBDA(_xlpm.n, _xlfn.LET(_xlpm.phi, (1+SQRT(5))/2, (_xlpm.phi^_xlpm.n - (1-_xlpm.phi)^_xlpm.n)/SQRT(5)))(A133) -> 1.066340417e+27 | E133: 1.066340417e+27 | F133: 1.066340417e+27 | G133: 1.066340417e+27
A134: 132 | B134: =_xlfn.LAMBDA(_xlpm.n, _xlfn.LET(_xlpm.phi, (1+SQRT(5))/2, (_xlpm.phi^_xlpm.n - (1-_xlpm.phi)^_xlpm.n)/SQRT(5)))(A134) -> 1.725375039e+27 | E134: 1.725375039e+27 | F134: 1.725375039e+27 | G134: 1.725375039e+27
A135: 133 | B135: =_xlfn.LAMBDA(_xlpm.n, _xlfn.LET(_xlpm.phi, (1+SQRT(5))/2, (_xlpm.phi^_xlpm.n - (1-_xlpm.phi)^_xlpm.n)/SQRT(5)))(A135) -> 2.791715457e+27 | E135: 2.791715457e+27 | F135: 2.791715457e+27 | G135: 2.791715457e+27
A136: 134 | B136: =_xlfn.LAMBDA(_xlpm.n, _xlfn.LET(_xlpm.phi, (1+SQRT(5))/2, (_xlpm.phi^_xlpm.n - (1-_xlpm.phi)^_xlpm.n)/SQRT(5)))(A136) -> 4.517090496e+27 | E136: 4.517090496e+27 | F136: 4.517090496e+27 | G136: 4.517090496e+27
A137: 135 | B137: =_xlfn.LAMBDA(_xlpm.n, _xlfn.LET(_xlpm.phi, (1+SQRT(5))/2, (_xlpm.phi^_xlpm.n - (1-_xlpm.phi)^_xlpm.n)/SQRT(5)))(A137) -> 7.308805952e+27 | E137: 7.308805952e+27 | F137: 7.308805952e+27 | G137: 7.308805952e+27
A138: 136 | B138: =_xlfn.LAMBDA(_xlpm.n, _xlfn.LET(_xlpm.phi, (1+SQRT(5))/2, (_xlpm.phi^_xlpm.n - (1-_xlpm.phi)^_xlpm.n)/SQRT(5)))(A138) -> 1.182589645e+28 | E138: 1.182589645e+28 | F138: 1.182589645e+28 | G138: 1.182589645e+28
A139: 137 | B139: =_xlfn.LAMBDA(_xlpm.n, _xlfn.LET(_xlpm.phi, (1+SQRT(5))/2, (_xlpm.phi^_xlpm.n - (1-_xlpm.phi)^_xlpm.n)/SQRT(5)))(A139) -> 1.91347024e+28 | E139: 1.91347024e+28 | F139: 1.91347024e+28 | G139: 1.91347024e+28
A140: 138 | B140: =_xlfn.LAMBDA(_xlpm.n, _xlfn.LET(_xlpm.phi, (1+SQRT(5))/2, (_xlpm.phi^_xlpm.n - (1-_xlpm.phi)^_xlpm.n)/SQRT(5)))(A140) -> 3.096059885e+28 | E140: 3.096059885e+28 | F140: 3.096059885e+28 | G140: 3.096059885e+28
A141: 139 | B141: =_xlfn.LAMBDA(_xlpm.n, _xlfn.LET(_xlpm.phi, (1+SQRT(5))/2, (_xlpm.phi^_xlpm.n - (1-_xlpm.phi)^_xlpm.n)/SQRT(5)))(A141) -> 5.009530125e+28 | E141: 5.009530125e+28 | F141: 5.009530125e+28 | G141: 5.009530125e+28
A142: 140 | B142: =_xlfn.LAMBDA(_xlpm.n, _xlfn.LET(_xlpm.phi, (1+SQRT(5))/2, (_xlpm.phi^_xlpm.n - (1-_xlpm.phi)^_xlpm.n)/SQRT(5)))(A142) -> 8.10559001e+28 | E142: 8.10559001e+28 | F142: 8.10559001e+28 | G142: 8.10559001e+28
A143: 141 | B143: =_xlfn.LAMBDA(_xlpm.n, _xlfn.LET(_xlpm.phi, (1+SQRT(5))/2, (_xlpm.phi^_xlpm.n - (1-_xlpm.phi)^_xlpm.n)/SQRT(5)))(A143) -> 1.311512013e+29 | E143: 1.311512013e+29 | F143: 1.311512013e+29 | G143: 1.311512013e+29
A144: 142 | B144: =_xlfn.LAMBDA(_xlpm.n, _xlfn.LET(_xlpm.phi, (1+SQRT(5))/2, (_xlpm.phi^_xlpm.n - (1-_xlpm.phi)^_xlpm.n)/SQRT(5)))(A144) -> 2.122071014e+29 | E144: 2.122071014e+29 | F144: 2.122071014e+29 | G144: 2.122071014e+29
A145: 143 | B145: =_xlfn.LAMBDA(_xlpm.n, _xlfn.LET(_xlpm.phi, (1+SQRT(5))/2, (_xlpm.phi^_xlpm.n - (1-_xlpm.phi)^_xlpm.n)/SQRT(5)))(A145) -> 3.433583028e+29 | E145: 3.433583028e+29 | F145: 3.433583028e+29 | G145: 3.433583028e+29
A146: 144 | B146: =_xlfn.LAMBDA(_xlpm.n, _xlfn.LET(_xlpm.phi, (1+SQRT(5))/2, (_xlpm.phi^_xlpm.n - (1-_xlpm.phi)^_xlpm.n)/SQRT(5)))(A146) -> 5.555654042e+29 | E146: 5.555654042e+29 | F146: 5.555654042e+29 | G146: 5.555654042e+29
A147: 145 | B147: =_xlfn.LAMBDA(_xlpm.n, _xlfn.LET(_xlpm.phi, (1+SQRT(5))/2, (_xlpm.phi^_xlpm.n - (1-_xlpm.phi)^_xlpm.n)/SQRT(5)))(A147) -> 8.98923707e+29 | E147: 8.98923707e+29 | F147: 8.98923707e+29 | G147: 8.98923707e+29
A148: 146 | B148: =_xlfn.LAMBDA(_xlpm.n, _xlfn.LET(_xlpm.phi, (1+SQRT(5))/2, (_xlpm.phi^_xlpm.n - (1-_xlpm.phi)^_xlpm.n)/SQRT(5)))(A148) -> 1.454489111e+30 | E148: 1.454489111e+30 | F148: 1.454489111e+30 | G148: 1.454489111e+30
A149: 147 | B149: =_xlfn.LAMBDA(_xlpm.n, _xlfn.LET(_xlpm.phi, (1+SQRT(5))/2, (_xlpm.phi^_xlpm.n - (1-_xlpm.phi)^_xlpm.n)/SQRT(5)))(A149) -> 2.353412818e+30 | E149: 2.353412818e+30 | F149: 2.353412818e+30 | G149: 2.353412818e+30
A150: 148 | B150: =_xlfn.LAMBDA(_xlpm.n, _xlfn.LET(_xlpm.phi, (1+SQRT(5))/2, (_xlpm.phi^_xlpm.n - (1-_xlpm.phi)^_xlpm.n)/SQRT(5)))(A150) -> 3.807901929e+30 | E150: 3.807901929e+30 | F150: 3.807901929e+30 | G150: 3.807901929e+30
A151: 149 | B151: =_xlfn.LAMBDA(_xlpm.n, _xlfn.LET(_xlpm.phi, (1+SQRT(5))/2, (_xlpm.phi^_xlpm.n - (1-_xlpm.phi)^_xlpm.n)/SQRT(5)))(A151) -> 6.161314748e+30 | E151: 6.161314748e+30 | F151: 6.161314748e+30 | G151: 6.161314748e+30
A152: 150 | B152: =_xlfn.LAMBDA(_xlpm.n, _xlfn.LET(_xlpm.phi, (1+SQRT(5))/2, (_xlpm.phi^_xlpm.n - (1-_xlpm.phi)^_xlpm.n)/SQRT(5)))(A152) -> 9.969216677e+30 | E152: 9.969216677e+30 | F152: 9.969216677e+30 | G152: 9.969216677e+30
A153: 151 | B153: =_xlfn.LAMBDA(_xlpm.n, _xlfn.LET(_xlpm.phi, (1+SQRT(5))/2, (_xlpm.phi^_xlpm.n - (1-_xlpm.phi)^_xlpm.n)/SQRT(5)))(A153) -> 1.613053142e+31 | E153: 1.613053142e+31 | F153: 1.613053142e+31 | G153: 1.613053142e+31
A154: 152 | B154: =_xlfn.LAMBDA(_xlpm.n, _xlfn.LET(_xlpm.phi, (1+SQRT(5))/2, (_xlpm.phi^_xlpm.n - (1-_xlpm.phi)^_xlpm.n)/SQRT(5)))(A154) -> 2.60997481e+31 | E154: 2.60997481e+31 | F154: 2.60997481e+31 | G154: 2.60997481e+31
A155: 153 | B155: =_xlfn.LAMBDA(_xlpm.n, _xlfn.LET(_xlpm.phi, (1+SQRT(5))/2, (_xlpm.phi^_xlpm.n - (1-_xlpm.phi)^_xlpm.n)/SQRT(5)))(A155) -> 4.223027953e+31 | E155: 4.223027953e+31 | F155: 4.223027953e+31 | G155: 4.223027953e+31
A156: 154 | B156: =_xlfn.LAMBDA(_xlpm.n, _xlfn.LET(_xlpm.phi, (1+SQRT(5))/2, (_xlpm.phi^_xlpm.n - (1-_xlpm.phi)^_xlpm.n)/SQRT(5)))(A156) -> 6.833002763e+31 | E156: 6.833002763e+31 | F156: 6.833002763e+31 | G156: 6.833002763e+31
A157: 155 | B157: =_xlfn.LAMBDA(_xlpm.n, _xlfn.LET(_xlpm.phi, (1+SQRT(5))/2, (_xlpm.phi^_xlpm.n - (1-_xlpm.phi)^_xlpm.n)/SQRT(5)))(A157) -> 1.105603072e+32 | E157: 1.105603072e+32 | F157: 1.105603072e+32 | G157: 1.105603072e+32
A158: 156 | B158: =_xlfn.LAMBDA(_xlpm.n, _xlfn.LET(_xlpm.phi, (1+SQRT(5))/2, (_xlpm.phi^_xlpm.n - (1-_xlpm.phi)^_xlpm.n)/SQRT(5)))(A158) -> 1.788903348e+32 | E158: 1.788903348e+32 | F158: 1.788903348e+32 | G158: 1.788903348e+32
A159: 157 | B159: =_xlfn.LAMBDA(_xlpm.n, _xlfn.LET(_xlpm.phi, (1+SQRT(5))/2, (_xlpm.phi^_xlpm.n - (1-_xlpm.phi)^_xlpm.n)/SQRT(5)))(A159) -> 2.894506419e+32 | E159: 2.894506419e+32 | F159: 2.894506419e+32 | G159: 2.894506419e+32
A160: 158 | B160: =_xlfn.LAMBDA(_xlpm.n, _xlfn.LET(_xlpm.phi, (1+SQRT(5))/2, (_xlpm.phi^_xlpm.n - (1-_xlpm.phi)^_xlpm.n)/SQRT(5)))(A160) -> 4.683409767e+32 | E160: 4.683409767e+32 | F160: 4.683409767e+32 | G160: 4.683409767e+32
A161: 159 | B161: =_xlfn.LAMBDA(_xlpm.n, _xlfn.LET(_xlpm.phi, (1+SQRT(5))/2, (_xlpm.phi^_xlpm.n - (1-_xlpm.phi)^_xlpm.n)/SQRT(5)))(A161) -> 7.577916187e+32 | E161: 7.577916187e+32 | F161: 7.577916187e+32 | G161: 7.577916187e+32
A162: 160 | B162: =_xlfn.LAMBDA(_xlpm.n, _xlfn.LET(_xlpm.phi, (1+SQRT(5))/2, (_xlpm.phi^_xlpm.n - (1-_xlpm.phi)^_xlpm.n)/SQRT(5)))(A162) -> 1.226132595e+33 | E162: 1.226132595e+33 | F162: 1.226132595e+33 | G162: 1.226132595e+33
A163: 161 | B163: =_xlfn.LAMBDA(_xlpm.n, _xlfn.LET(_xlpm.phi, (1+SQRT(5))/2, (_xlpm.phi^_xlpm.n - (1-_xlpm.phi)^_xlpm.n)/SQRT(5)))(A163) -> 1.983924214e+33 | E163: 1.983924214e+33 | F163: 1.983924214e+33 | G163: 1.983924214e+33
A164: 162 | B164: =_xlfn.LAMBDA(_xlpm.n, _xlfn.LET(_xlpm.phi, (1+SQRT(5))/2, (_xlpm.phi^_xlpm.n - (1-_xlpm.phi)^_xlpm.n)/SQRT(5)))(A164) -> 3.210056809e+33 | E164: 3.210056809e+33 | F164: 3.210056809e+33 | G164: 3.210056809e+33
A165: 163 | B165: =_xlfn.LAMBDA(_xlpm.n, _xlfn.LET(_xlpm.phi, (1+SQRT(5))/2, (_xlpm.phi^_xlpm.n - (1-_xlpm.phi)^_xlpm.n)/SQRT(5)))(A165) -> 5.193981024e+33 | E165: 5.193981024e+33 | F165: 5.193981024e+33 | G165: 5.193981024e+33
A166: 164 | B166: =_xlfn.LAMBDA(_xlpm.n, _xlfn.LET(_xlpm.phi, (1+SQRT(5))/2, (_xlpm.phi^_xlpm.n - (1-_xlpm.phi)^_xlpm.n)/SQRT(5)))(A166) -> 8.404037833e+33 | E166: 8.404037833e+33 | F166: 8.404037833e+33 | G166: 8.404037833e+33
A167: 165 | B167: =_xlfn.LAMBDA(_xlpm.n, _xlfn.LET(_xlpm.phi, (1+SQRT(5))/2, (_xlpm.phi^_xlpm.n - (1-_xlpm.phi)^_xlpm.n)/SQRT(5)))(A167) -> 1.359801886e+34 | E167: 1.359801886e+34 | F167: 1.359801886e+34 | G167: 1.359801886e+34
A168: 166 | B168: =_xlfn.LAMBDA(_xlpm.n, _xlfn.LET(_xlpm.phi, (1+SQRT(5))/2, (_xlpm.phi^_xlpm.n - (1-_xlpm.phi)^_xlpm.n)/SQRT(5)))(A168) -> 2.200205669e+34 | E168: 2.200205669e+34 | F168: 2.200205669e+34 | G168: 2.200205669e+34
A169: 167 | B169: =_xlfn.LAMBDA(_xlpm.n, _xlfn.LET(_xlpm.phi, (1+SQRT(5))/2, (_xlpm.phi^_xlpm.n - (1-_xlpm.phi)^_xlpm.n)/SQRT(5)))(A169) -> 3.560007555e+34 | E169: 3.560007555e+34 | F169: 3.560007555e+34 | G169: 3.560007555e+34
A170: 168 | B170: =_xlfn.LAMBDA(_xlpm.n, _xlfn.LET(_xlpm.phi, (1+SQRT(5))/2, (_xlpm.phi^_xlpm.n - (1-_xlpm.phi)^_xlpm.n)/SQRT(5)))(A170) -> 5.760213224e+34 | E170: 5.760213224e+34 | F170: 5.760213224e+34 | G170: 5.760213224e+34
A171: 169 | B171: =_xlfn.LAMBDA(_xlpm.n, _xlfn.LET(_xlpm.phi, (1+SQRT(5))/2, (_xlpm.phi^_xlpm.n - (1-_xlpm.phi)^_xlpm.n)/SQRT(5)))(A171) -> 9.320220778e+34 | E171: 9.320220778e+34 | F171: 9.320220778e+34 | G171: 9.320220778e+34
A172: 170 | B172: =_xlfn.LAMBDA(_xlpm.n, _xlfn.LET(_xlpm.phi, (1+SQRT(5))/2, (_xlpm.phi^_xlpm.n - (1-_xlpm.phi)^_xlpm.n)/SQRT(5)))(A172) -> 1.5080434e+35 | E172: 1.5080434e+35 | F172: 1.5080434e+35 | G172: 1.5080434e+35
A173: 171 | B173: =_xlfn.LAMBDA(_xlpm.n, _xlfn.LET(_xlpm.phi, (1+SQRT(5))/2, (_xlpm.phi^_xlpm.n - (1-_xlpm.phi)^_xlpm.n)/SQRT(5)))(A173) -> 2.440065478e+35 | E173: 2.440065478e+35 | F173: 2.440065478e+35 | G173: 2.440065478e+35
A174: 172 | B174: =_xlfn.LAMBDA(_xlpm.n, _xlfn.LET(_xlpm.phi, (1+SQRT(5))/2, (_xlpm.phi^_xlpm.n - (1-_xlpm.phi)^_xlpm.n)/SQRT(5)))(A174) -> 3.948108878e+35 | E174: 3.948108878e+35 | F174: 3.948108878e+35 | G174: 3.948108878e+35
A175: 173 | B175: =_xlfn.LAMBDA(_xlpm.n, _xlfn.LET(_xlpm.phi, (1+SQRT(5))/2, (_xlpm.phi^_xlpm.n - (1-_xlpm.phi)^_xlpm.n)/SQRT(5)))(A175) -> 6.388174356e+35 | E175: 6.388174356e+35 | F175: 6.388174356e+35 | G175: 6.388174356e+35
A176: 174 | B176: =_xlfn.LAMBDA(_xlpm.n, _xlfn.LET(_xlpm.phi, (1+SQRT(5))/2, (_xlpm.phi^_xlpm.n - (1-_xlpm.phi)^_xlpm.n)/SQRT(5)))(A176) -> 1.033628323e+36 | E176: 1.033628323e+36 | F176: 1.033628323e+36 | G176: 1.033628323e+36
A177: 175 | B177: =_xlfn.LAMBDA(_xlpm.n, _xlfn.LET(_xlpm.phi, (1+SQRT(5))/2, (_xlpm.phi^_xlpm.n - (1-_xlpm.phi)^_xlpm.n)/SQRT(5)))(A177) -> 1.672445759e+36 | E177: 1.672445759e+36 | F177: 1.672445759e+36 | G177: 1.672445759e+36
A178: 176 | B178: =_xlfn.LAMBDA(_xlpm.n, _xlfn.LET(_xlpm.phi, (1+SQRT(5))/2, (_xlpm.phi^_xlpm.n - (1-_xlpm.phi)^_xlpm.n)/SQRT(5)))(A178) -> 2.706074082e+36 | E178: 2.706074082e+36 | F178: 2.706074082e+36 | G178: 2.706074082e+36
A179: 177 | B179: =_xlfn.LAMBDA(_xlpm.n, _xlfn.LET(_xlpm.phi, (1+SQRT(5))/2, (_xlpm.phi^_xlpm.n - (1-_xlpm.phi)^_xlpm.n)/SQRT(5)))(A179) -> 4.378519842e+36 | E179: 4.378519842e+36 | F179: 4.378519842e+36 | G179: 4.378519842e+36
A180: 178 | B180: =_xlfn.LAMBDA(_xlpm.n, _xlfn.LET(_xlpm.phi, (1+SQRT(5))/2, (_xlpm.phi^_xlpm.n - (1-_xlpm.phi)^_xlpm.n)/SQRT(5)))(A180) -> 7.084593924e+36 | E180: 7.084593924e+36 | F180: 7.084593924e+36 | G180: 7.084593924e+36
A181: 179 | B181: =_xlfn.LAMBDA(_xlpm.n, _xlfn.LET(_xlpm.phi, (1+SQRT(5))/2, (_xlpm.phi^_xlpm.n - (1-_xlpm.phi)^_xlpm.n)/SQRT(5)))(A181) -> 1.146311377e+37 | E181: 1.146311377e+37 | F181: 1.146311377e+37 | G181: 1.146311377e+37
A182: 180 | B182: =_xlfn.LAMBDA(_xlpm.n, _xlfn.LET(_xlpm.phi, (1+SQRT(5))/2, (_xlpm.phi^_xlpm.n - (1-_xlpm.phi)^_xlpm.n)/SQRT(5)))(A182) -> 1.854770769e+37 | E182: 1.854770769e+37 | F182: 1.854770769e+37 | G182: 1.854770769e+37
A183: 181 | B183: =_xlfn.LAMBDA(_xlpm.n, _xlfn.LET(_xlpm.phi, (1+SQRT(5))/2, (_xlpm.phi^_xlpm.n - (1-_xlpm.phi)^_xlpm.n)/SQRT(5)))(A183) -> 3.001082145e+37 | E183: 3.001082145e+37 | F183: 3.001082145e+37 | G183: 3.001082145e+37
A184: 182 | B184: =_xlfn.LAMBDA(_xlpm.n, _xlfn.LET(_xlpm.phi, (1+SQRT(5))/2, (_xlpm.phi^_xlpm.n - (1-_xlpm.phi)^_xlpm.n)/SQRT(5)))(A184) -> 4.855852914e+37 | E184: 4.855852914e+37 | F184: 4.855852914e+37 | G184: 4.855852914e+37
A185: 183 | B185: =_xlfn.LAMBDA(_xlpm.n, _xlfn.LET(_xlpm.phi, (1+SQRT(5))/2, (_xlpm.phi^_xlpm.n - (1-_xlpm.phi)^_xlpm.n)/SQRT(5)))(A185) -> 7.85693506e+37 | E185: 7.85693506e+37 | F185: 7.85693506e+37 | G185: 7.85693506e+37
A186: 184 | B186: =_xlfn.LAMBDA(_xlpm.n, _xlfn.LET(_xlpm.phi, (1+SQRT(5))/2, (_xlpm.phi^_xlpm.n - (1-_xlpm.phi)^_xlpm.n)/SQRT(5)))(A186) -> 1.271278797e+38 | E186: 1.271278797e+38 | F186: 1.271278797e+38 | G186: 1.271278797e+38
A187: 185 | B187: =_xlfn.LAMBDA(_xlpm.n, _xlfn.LET(_xlpm.phi, (1+SQRT(5))/2, (_xlpm.phi^_xlpm.n - (1-_xlpm.phi)^_xlpm.n)/SQRT(5)))(A187) -> 2.056972303e+38 | E187: 2.056972303e+38 | F187: 2.056972303e+38 | G187: 2.056972303e+38
A188: 186 | B188: =_xlfn.LAMBDA(_xlpm.n, _xlfn.LET(_xlpm.phi, (1+SQRT(5))/2, (_xlpm.phi^_xlpm.n - (1-_xlpm.phi)^_xlpm.n)/SQRT(5)))(A188) -> 3.328251101e+38 | E188: 3.328251101e+38 | F188: 3.328251101e+38 | G188: 3.328251101e+38
A189: 187 | B189: =_xlfn.LAMBDA(_xlpm.n, _xlfn.LET(_xlpm.phi, (1+SQRT(5))/2, (_xlpm.phi^_xlpm.n - (1-_xlpm.phi)^_xlpm.n)/SQRT(5)))(A189) -> 5.385223404e+38 | E189: 5.385223404e+38 | F189: 5.385223404e+38 | G189: 5.385223404e+38
A190: 188 | B190: =_xlfn.LAMBDA(_xlpm.n, _xlfn.LET(_xlpm.phi, (1+SQRT(5))/2, (_xlpm.phi^_xlpm.n - (1-_xlpm.phi)^_xlpm.n)/SQRT(5)))(A190) -> 8.713474505e+38 | E190: 8.713474505e+38 | F190: 8.713474505e+38 | G190: 8.713474505e+38
A191: 189 | B191: =_xlfn.LAMBDA(_xlpm.n, _xlfn.LET(_xlpm.phi, (1+SQRT(5))/2, (_xlpm.phi^_xlpm.n - (1-_xlpm.phi)^_xlpm.n)/SQRT(5)))(A191) -> 1.409869791e+39 | E191: 1.409869791e+39 | F191: 1.409869791e+39 | G191: 1.409869791e+39
A192: 190 | B192: =_xlfn.LAMBDA(_xlpm.n, _xlfn.LET(_xlpm.phi, (1+SQRT(5))/2, (_xlpm.phi^_xlpm.n - (1-_xlpm.phi)^_xlpm.n)/SQRT(5)))(A192) -> 2.281217241e+39 | E192: 2.281217241e+39 | F192: 2.281217241e+39 | G192: 2.281217241e+39
A193: 191 | B193: =_xlfn.LAMBDA(_xlpm.n, _xlfn.LET(_xlpm.phi, (1+SQRT(5))/2, (_xlpm.phi^_xlpm.n - (1-_xlpm.phi)^_xlpm.n)/SQRT(5)))(A193) -> 3.691087032e+39 | E193: 3.691087032e+39 | F193: 3.691087032e+39 | G193: 3.691087032e+39
A194: 192 | B194: =_xlfn.LAMBDA(_xlpm.n, _xlfn.LET(_xlpm.phi, (1+SQRT(5))/2, (_xlpm.phi^_xlpm.n - (1-_xlpm.phi)^_xlpm.n)/SQRT(5)))(A194) -> 5.972304274e+39 | E194: 5.972304274e+39 | F194: 5.972304274e+39 | G194: 5.972304274e+39
A195: 193 | B195: =_xlfn.LAMBDA(_xlpm.n, _xlfn.LET(_xlpm.phi, (1+SQRT(5))/2, (_xlpm.phi^_xlpm.n - (1-_xlpm.phi)^_xlpm.n)/SQRT(5)))(A195) -> 9.663391306e+39 | E195: 9.663391306e+39 | F195: 9.663391306e+39 | G195: 9.663391306e+39
A196: 194 | B196: =_xlfn.LAMBDA(_xlpm.n, _xlfn.LET(_xlpm.phi, (1+SQRT(5))/2, (_xlpm.phi^_xlpm.n - (1-_xlpm.phi)^_xlpm.n)/SQRT(5)))(A196) -> 1.563569558e+40 | E196: 1.563569558e+40 | F196: 1.563569558e+40 | G196: 1.563569558e+40
A197: 195 | B197: =_xlfn.LAMBDA(_xlpm.n, _xlfn.LET(_xlpm.phi, (1+SQRT(5))/2, (_xlpm.phi^_xlpm.n - (1-_xlpm.phi)^_xlpm.n)/SQRT(5)))(A197) -> 2.529908689e+40 | E197: 2.529908689e+40 | F197: 2.529908689e+40 | G197: 2.529908689e+40
A198: 196 | B198: =_xlfn.LAMBDA(_xlpm.n, _xlfn.LET(_xlpm.phi, (1+SQRT(5))/2, (_xlpm.phi^_xlpm.n - (1-_xlpm.phi)^_xlpm.n)/SQRT(5)))(A198) -> 4.093478247e+40 | E198: 4.093478247e+40 | F198: 4.093478247e+40 | G198: 4.093478247e+40
A199: 197 | B199: =_xlfn.LAMBDA(_xlpm.n, _xlfn.LET(_xlpm.phi, (1+SQRT(5))/2, (_xlpm.phi^_xlpm.n - (1-_xlpm.phi)^_xlpm.n)/SQRT(5)))(A199) -> 6.623386935e+40 | E199: 6.623386935e+40 | F199: 6.623386935e+40 | G199: 6.623386935e+40
A200: 198 | B200: =_xlfn.LAMBDA(_xlpm.n, _xlfn.LET(_xlpm.phi, (1+SQRT(5))/2, (_xlpm.phi^_xlpm.n - (1-_xlpm.phi)^_xlpm.n)/SQRT(5)))(A200) -> 1.071686518e+41 | E200: 1.071686518e+41 | F200: 1.071686518e+41 | G200: 1.071686518e+41
... 802 more rows

Sheet Overflow
A1: Handling Overflow > | B1: N | C1: F_N (CSE) | D1: F_N (UDF Int) | E1: F_N (UDF Dbl)
B2: =_xlfn.SEQUENCE(1001) -> 1 | C2: =_xlfn.LAMBDA(_xlpm.x, IFERROR(OFFSET(_xlpm.x, -1, 0) + OFFSET(_xlpm.x, -2, 0), 1))(INDIRECT(ADDRESS(ROW(), COLUMN()))) -> 1 | D2: =UDF_FiboSequenceIterativeInt(1001) -> 1 | E2: =UDF_FiboSequenceIterativeDbl(1001) -> 1
B3: 2 | C3: 1 | D3: 1 | E3: 1
B4: 3 | C4: 2 | D4: 2 | E4: 2
B5: 4 | C5: 3 | D5: 3 | E5: 3
B6: 5 | C6: 5 | D6: 5 | E6: 5
B7: 6 | C7: 8 | D7: 8 | E7: 8
B8: 7 | C8: 13 | D8: 13 | E8: 13
B9: 8 | C9: 21 | D9: 21 | E9: 21
B10: 9 | C10: 34 | D10: 34 | E10: 34
B11: 10 | C11: 55 | D11: 55 | E11: 55
B12: 11 | C12: 89 | D12: 89 | E12: 89
B13: 12 | C13: 144 | D13: 144 | E13: 144
B14: 13 | C14: 233 | D14: 233 | E14: 233
B15: 14 | C15: 377 | D15: 377 | E15: 377
B16: 15 | C16: 610 | D16: 610 | E16: 610
B17: 16 | C17: 987 | D17: 987 | E17: 987
B18: 17 | C18: 1597 | D18: 1597 | E18: 1597
B19: 18 | C19: 2584 | D19: 2584 | E19: 2584
B20: 19 | C20: 4181 | D20: 4181 | E20: 4181
B21: 20 | C21: 6765 | D21: 6765 | E21: 6765
B22: 21 | C22: 10946 | D22: 10946 | E22: 10946
B23: 22 | C23: 17711 | D23: 17711 | E23: 17711
B24: 23 | C24: 28657 | D24: 28657 | E24: 28657
B25: 24 | C25: 46368 | D25: 46368 | E25: 46368
B26: 25 | C26: 75025 | D26: 75025 | E26: 75025
B27: 26 | C27: 121393 | D27: 121393 | E27: 121393
B28: 27 | C28: 196418 | D28: 196418 | E28: 196418
B29: 28 | C29: 317811 | D29: 317811 | E29: 317811
B30: 29 | C30: 514229 | D30: 514229 | E30: 514229
B31: 30 | C31: 832040 | D31: 832040 | E31: 832040
B32: 31 | C32: 1346269 | D32: 1346269 | E32: 1346269
B33: 32 | C33: 2178309 | D33: 2178309 | E33: 2178309
B34: 33 | C34: 3524578 | D34: 3524578 | E34: 3524578
B35: 34 | C35: 5702887 | D35: 5702887 | E35: 5702887
B36: 35 | C36: 9227465 | D36: 9227465 | E36: 9227465
B37: 36 | C37: 14930352 | D37: 14930352 | E37: 14930352
B38: 37 | C38: 24157817 | D38: 24157817 | E38: 24157817
B39: 38 | C39: 39088169 | D39: 39088169 | E39: 39088169
B40: 39 | C40: 63245986 | D40: 63245986 | E40: 63245986
B41: 40 | C41: 102334155 | D41: 102334155 | E41: 102334155
B42: 41 | C42: 165580141 | D42: 165580141 | E42: 165580141
B43: 42 | C43: 267914296 | D43: 267914296 | E43: 267914296
B44: 43 | C44: 433494437 | D44: 433494437 | E44: 433494437
B45: 44 | C45: 701408733 | D45: 701408733 | E45: 701408733
B46: 45 | C46: 1134903170 | D46: 1134903170 | E46: 1134903170
B47: 46 | C47: 1836311903 | D47: 1836311903 | E47: 1836311903
B48: 47 | C48: 2971215073 | D48: 2971215073 | E48: 2971215073
B49: 48 | C49: 4807526976 | D49: 4807526976 | E49: 4807526976
B50: 49 | C50: 7778742049 | D50: 7778742049 | E50: 7778742049
B51: 50 | C51: 12586269025 | D51: 12586269025 | E51: 12586269025
B52: 51 | C52: 20365011074 | D52: 20365011074 | E52: 20365011074
B53: 52 | C53: 32951280099 | D53: 32951280099 | E53: 32951280099
B54: 53 | C54: 53316291173 | D54: 53316291173 | E54: 53316291173
B55: 54 | C55: 86267571272 | D55: 86267571272 | E55: 86267571272
B56: 55 | C56: 139583862445 | D56: 139583862445 | E56: 139583862445
B57: 56 | C57: 225851433717 | D57: 225851433717 | E57: 225851433717
B58: 57 | C58: 365435296162 | D58: 365435296162 | E58: 365435296162
B59: 58 | C59: 591286729879 | D59: 591286729879 | E59: 591286729879
B60: 59 | C60: 956722026041 | D60: 956722026041 | E60: 956722026041
B61: 60 | C61: 1548008755920 | D61: 1548008755920 | E61: 1548008755920
B62: 61 | C62: 2504730781961 | D62: 2504730781961 | E62: 2504730781961
B63: 62 | C63: 4052739537881 | D63: 4052739537881 | E63: 4052739537881
B64: 63 | C64: 6557470319842 | D64: 6557470319842 | E64: 6557470319842
B65: 64 | C65: 10610209857723 | D65: 10610209857723 | E65: 10610209857723
B66: 65 | C66: 17167680177565 | D66: 17167680177565 | E66: 17167680177565
B67: 66 | C67: 27777890035288 | D67: 27777890035288 | E67: 27777890035288
B68: 67 | C68: 44945570212853 | D68: 44945570212853 | E68: 44945570212853
B69: 68 | C69: 72723460248141 | D69: 72723460248141 | E69: 72723460248141
B70: 69 | C70: 117669030460994 | D70: 117669030460994 | E70: 117669030460994
B71: 70 | C71: 190392490709135 | D71: 190392490709135 | E71: 190392490709135
B72: 71 | C72: 308061521170129 | D72: 308061521170129 | E72: 308061521170129
B73: 72 | C73: 498454011879264 | D73: 498454011879264 | E73: 498454011879264
B74: 73 | C74: 806515533049393 | D74: 806515533049393 | E74: 806515533049393
B75: 74 | C75: 1304969544928657 | D75: 1304969544928657 | E75: 1304969544928657
B76: 75 | C76: 2111485077978050 | D76: 2111485077978050 | E76: 2111485077978050
B77: 76 | C77: 3416454622906707 | D77: 3416454622906707 | E77: 3416454622906707
B78: 77 | C78: 5527939700884757 | D78: 5527939700884757 | E78: 5527939700884757
B79: 78 | C79: 8944394323791464 | D79: 8944394323791464 | E79: 8944394323791464
B80: 79 | C80: 1.447233402e+16 | D80: 1.447233402e+16 | E80: 1.447233402e+16
B81: 80 | C81: 2.341672835e+16 | D81: 2.341672835e+16 | E81: 2.341672835e+16
B82: 81 | C82: 3.788906237e+16 | D82: 3.788906237e+16 | E82: 3.788906237e+16
B83: 82 | C83: 6.130579072e+16 | D83: 6.130579072e+16 | E83: 6.130579072e+16
B84: 83 | C84: 9.919485309e+16 | D84: 9.919485309e+16 | E84: 9.919485309e+16
B85: 84 | C85: 1.605006438e+17 | D85: 1.605006438e+17 | E85: 1.605006438e+17
B86: 85 | C86: 2.596954969e+17 | D86: 2.596954969e+17 | E86: 2.596954969e+17
B87: 86 | C87: 4.201961407e+17 | D87: 4.201961407e+17 | E87: 4.201961407e+17
B88: 87 | C88: 6.798916376e+17 | D88: 6.798916376e+17 | E88: 6.798916376e+17
B89: 88 | C89: 1.100087778e+18 | D89: 1.100087778e+18 | E89: 1.100087778e+18
B90: 89 | C90: 1.779979416e+18 | D90: 1.779979416e+18 | E90: 1.779979416e+18
B91: 90 | C91: 2.880067194e+18 | D91: 2.880067194e+18 | E91: 2.880067194e+18
B92: 91 | C92: 4.66004661e+18 | D92: 4.66004661e+18 | E92: 4.66004661e+18
B93: 92 | C93: 7.540113805e+18 | D93: 7.540113805e+18 | E93: 7.540113805e+18
B94: 93 | C94: 1.220016042e+19 | D94: 0 | E94: 1.220016042e+19
B95: 94 | C95: 1.974027422e+19 | D95: 0 | E95: 1.974027422e+19
B96: 95 | C96: 3.194043463e+19 | D96: 0 | E96: 3.194043463e+19
B97: 96 | C97: 5.168070885e+19 | D97: 0 | E97: 5.168070885e+19
B98: 97 | C98: 8.362114349e+19 | D98: 0 | E98: 8.362114349e+19
B99: 98 | C99: 1.353018523e+20 | D99: 0 | E99: 1.353018523e+20
B100: 99 | C100: 2.189229958e+20 | D100: 0 | E100: 2.189229958e+20
B101: 100 | C101: 3.542248482e+20 | D101: 0 | E101: 3.542248482e+20
B102: 101 | C102: 5.73147844e+20 | D102: 0 | E102: 5.73147844e+20
B103: 102 | C103: 9.273726922e+20 | D103: 0 | E103: 9.273726922e+20
B104: 103 | C104: 1.500520536e+21 | D104: 0 | E104: 1.500520536e+21
B105: 104 | C105: 2.427893228e+21 | D105: 0 | E105: 2.427893228e+21
B106: 105 | C106: 3.928413765e+21 | D106: 0 | E106: 3.928413765e+21
B107: 106 | C107: 6.356306993e+21 | D107: 0 | E107: 6.356306993e+21
B108: 107 | C108: 1.028472076e+22 | D108: 0 | E108: 1.028472076e+22
B109: 108 | C109: 1.664102775e+22 | D109: 0 | E109: 1.664102775e+22
B110: 109 | C110: 2.692574851e+22 | D110: 0 | E110: 2.692574851e+22
B111: 110 | C111: 4.356677626e+22 | D111: 0 | E111: 4.356677626e+22
B112: 111 | C112: 7.049252477e+22 | D112: 0 | E112: 7.049252477e+22
B113: 112 | C113: 1.14059301e+23 | D113: 0 | E113: 1.14059301e+23
B114: 113 | C114: 1.845518258e+23 | D114: 0 | E114: 1.845518258e+23
B115: 114 | C115: 2.986111268e+23 | D115: 0 | E115: 2.986111268e+23
B116: 115 | C116: 4.831629526e+23 | D116: 0 | E116: 4.831629526e+23
B117: 116 | C117: 7.817740794e+23 | D117: 0 | E117: 7.817740794e+23
B118: 117 | C118: 1.264937032e+24 | D118: 0 | E118: 1.264937032e+24
B119: 118 | C119: 2.046711111e+24 | D119: 0 | E119: 2.046711111e+24
B120: 119 | C120: 3.311648144e+24 | D120: 0 | E120: 3.311648144e+24
B121: 120 | C121: 5.358359255e+24 | D121: 0 | E121: 5.358359255e+24
B122: 121 | C122: 8.670007399e+24 | D122: 0 | E122: 8.670007399e+24
B123: 122 | C123: 1.402836665e+25 | D123: 0 | E123: 1.402836665e+25
B124: 123 | C124: 2.269837405e+25 | D124: 0 | E124: 2.269837405e+25
B125: 124 | C125: 3.672674071e+25 | D125: 0 | E125: 3.672674071e+25
B126: 125 | C126: 5.942511476e+25 | D126: 0 | E126: 5.942511476e+25
B127: 126 | C127: 9.615185546e+25 | D127: 0 | E127: 9.615185546e+25
B128: 127 | C128: 1.555769702e+26 | D128: 0 | E128: 1.555769702e+26
B129: 128 | C129: 2.517288257e+26 | D129: 0 | E129: 2.517288257e+26
B130: 129 | C130: 4.073057959e+26 | D130: 0 | E130: 4.073057959e+26
B131: 130 | C131: 6.590346216e+26 | D131: 0 | E131: 6.590346216e+26
B132: 131 | C132: 1.066340417e+27 | D132: 0 | E132: 1.066340417e+27
B133: 132 | C133: 1.725375039e+27 | D133: 0 | E133: 1.725375039e+27
B134: 133 | C134: 2.791715457e+27 | D134: 0 | E134: 2.791715457e+27
B135: 134 | C135: 4.517090496e+27 | D135: 0 | E135: 4.517090496e+27
B136: 135 | C136: 7.308805952e+27 | D136: 0 | E136: 7.308805952e+27
B137: 136 | C137: 1.182589645e+28 | D137: 0 | E137: 1.182589645e+28
B138: 137 | C138: 1.91347024e+28 | D138: 0 | E138: 1.91347024e+28
B139: 138 | C139: 3.096059885e+28 | D139: 0 | E139: 3.096059885e+28
B140: 139 | C140: 5.009530125e+28 | D140: 0 | E140: 5.009530125e+28
B141: 140 | C141: 8.10559001e+28 | D141: 0 | E141: 8.10559001e+28
B142: 141 | C142: 1.311512013e+29 | D142: 0 | E142: 1.311512013e+29
B143: 142 | C143: 2.122071014e+29 | D143: 0 | E143: 2.122071014e+29
B144: 143 | C144: 3.433583028e+29 | D144: 0 | E144: 3.433583028e+29
B145: 144 | C145: 5.555654042e+29 | D145: 0 | E145: 5.555654042e+29
B146: 145 | C146: 8.98923707e+29 | D146: 0 | E146: 8.98923707e+29
B147: 146 | C147: 1.454489111e+30 | D147: 0 | E147: 1.454489111e+30
B148: 147 | C148: 2.353412818e+30 | D148: 0 | E148: 2.353412818e+30
B149: 148 | C149: 3.807901929e+30 | D149: 0 | E149: 3.807901929e+30
B150: 149 | C150: 6.161314748e+30 | D150: 0 | E150: 6.161314748e+30
B151: 150 | C151: 9.969216677e+30 | D151: 0 | E151: 9.969216677e+30
B152: 151 | C152: 1.613053142e+31 | D152: 0 | E152: 1.613053142e+31
B153: 152 | C153: 2.60997481e+31 | D153: 0 | E153: 2.60997481e+31
B154: 153 | C154: 4.223027953e+31 | D154: 0 | E154: 4.223027953e+31
B155: 154 | C155: 6.833002763e+31 | D155: 0 | E155: 6.833002763e+31
B156: 155 | C156: 1.105603072e+32 | D156: 0 | E156: 1.105603072e+32
B157: 156 | C157: 1.788903348e+32 | D157: 0 | E157: 1.788903348e+32
B158: 157 | C158: 2.894506419e+32 | D158: 0 | E158: 2.894506419e+32
B159: 158 | C159: 4.683409767e+32 | D159: 0 | E159: 4.683409767e+32
B160: 159 | C160: 7.577916187e+32 | D160: 0 | E160: 7.577916187e+32
B161: 160 | C161: 1.226132595e+33 | D161: 0 | E161: 1.226132595e+33
B162: 161 | C162: 1.983924214e+33 | D162: 0 | E162: 1.983924214e+33
B163: 162 | C163: 3.210056809e+33 | D163: 0 | E163: 3.210056809e+33
B164: 163 | C164: 5.193981024e+33 | D164: 0 | E164: 5.193981024e+33
B165: 164 | C165: 8.404037833e+33 | D165: 0 | E165: 8.404037833e+33
B166: 165 | C166: 1.359801886e+34 | D166: 0 | E166: 1.359801886e+34
B167: 166 | C167: 2.200205669e+34 | D167: 0 | E167: 2.200205669e+34
B168: 167 | C168: 3.560007555e+34 | D168: 0 | E168: 3.560007555e+34
B169: 168 | C169: 5.760213224e+34 | D169: 0 | E169: 5.760213224e+34
B170: 169 | C170: 9.320220778e+34 | D170: 0 | E170: 9.320220778e+34
B171: 170 | C171: 1.5080434e+35 | D171: 0 | E171: 1.5080434e+35
B172: 171 | C172: 2.440065478e+35 | D172: 0 | E172: 2.440065478e+35
B173: 172 | C173: 3.948108878e+35 | D173: 0 | E173: 3.948108878e+35
B174: 173 | C174: 6.388174356e+35 | D174: 0 | E174: 6.388174356e+35
B175: 174 | C175: 1.033628323e+36 | D175: 0 | E175: 1.033628323e+36
B176: 175 | C176: 1.672445759e+36 | D176: 0 | E176: 1.672445759e+36
B177: 176 | C177: 2.706074082e+36 | D177: 0 | E177: 2.706074082e+36
B178: 177 | C178: 4.378519842e+36 | D178: 0 | E178: 4.378519842e+36
B179: 178 | C179: 7.084593924e+36 | D179: 0 | E179: 7.084593924e+36
B180: 179 | C180: 1.146311377e+37 | D180: 0 | E180: 1.146311377e+37
B181: 180 | C181: 1.854770769e+37 | D181: 0 | E181: 1.854770769e+37
B182: 181 | C182: 3.001082145e+37 | D182: 0 | E182: 3.001082145e+37
B183: 182 | C183: 4.855852914e+37 | D183: 0 | E183: 4.855852914e+37
B184: 183 | C184: 7.85693506e+37 | D184: 0 | E184: 7.85693506e+37
B185: 184 | C185: 1.271278797e+38 | D185: 0 | E185: 1.271278797e+38
B186: 185 | C186: 2.056972303e+38 | D186: 0 | E186: 2.056972303e+38
B187: 186 | C187: 3.328251101e+38 | D187: 0 | E187: 3.328251101e+38
B188: 187 | C188: 5.385223404e+38 | D188: 0 | E188: 5.385223404e+38
B189: 188 | C189: 8.713474505e+38 | D189: 0 | E189: 8.713474505e+38
B190: 189 | C190: 1.409869791e+39 | D190: 0 | E190: 1.409869791e+39
B191: 190 | C191: 2.281217241e+39 | D191: 0 | E191: 2.281217241e+39
B192: 191 | C192: 3.691087032e+39 | D192: 0 | E192: 3.691087032e+39
B193: 192 | C193: 5.972304274e+39 | D193: 0 | E193: 5.972304274e+39
B194: 193 | C194: 9.663391306e+39 | D194: 0 | E194: 9.663391306e+39
B195: 194 | C195: 1.563569558e+40 | D195: 0 | E195: 1.563569558e+40
B196: 195 | C196: 2.529908689e+40 | D196: 0 | E196: 2.529908689e+40
B197: 196 | C197: 4.093478247e+40 | D197: 0 | E197: 4.093478247e+40
B198: 197 | C198: 6.623386935e+40 | D198: 0 | E198: 6.623386935e+40
B199: 198 | C199: 1.071686518e+41 | D199: 0 | E199: 1.071686518e+41
B200: 199 | C200: 1.734025212e+41 | D200: 0 | E200: 1.734025212e+41
... 802 more rows
